Organisation Name (A),Department (B),Service Cat Label (C ),Purpose of Spend (D),Expenditure CIPFA Sub Group (E),Supplier (F),Supplier Reference (G),Pay Date (H),Transaction Number (I),Net Amount (J),Grant to VCSE? (K),Charity Number (L),Card Transaction (M),Irrecoverable VAT (N)
Pendle Borough Council,Operational Services,Transport Related Expense,Tprt : Repairs : General,3105,FST CONSUMABLES LIMITED,A0000004,12/10/2023,OPS0336982,34.63,N,,N,N
Pendle Borough Council,Operational Services,Transport Related Expense,Diesel Oil,3202,FST CONSUMABLES LIMITED,A0000004,12/10/2023,OPS0336982,108.33,N,,N,N
Pendle Borough Council,Operational Services,Premises Related Expense,Grounds : R & M : Day to Day : Routine,2101,BARNES JB LIMITED,A0000202,12/10/2023,OPS0336979,20.33,N,,N,N
Pendle Borough Council,Operational Services,Capital Costs,Capital : Payments,CD14,BROXAP LIMITED,A0000236,25/10/2023,OPS0337252,92,N,,N,N
Pendle Borough Council,Operational Services,Capital Costs,Capital : Payments,CD14,BROXAP LIMITED,A0000236,25/10/2023,OPS0337252,236,N,,N,N
Pendle Borough Council,Operational Services,Capital Costs,Capital : Payments,CD14,BROXAP LIMITED,A0000236,25/10/2023,OPS0337252,246,N,,N,N
Pendle Borough Council,Housing & Environmental Health,Supplies and Services,Miscellaneous : Other,4707,BLACKBURN/DARWEN BOROUGH COUNCIL,A0000381,19/10/2023,HEH0337114,5302.5,N,,N,N
Pendle Borough Council,Operational Services,Transport Related Expense,Hire of Plant,3502,BOC GASES LTD,A0000386,05/10/2023,OPS0336844,25.95,N,,N,N
Pendle Borough Council,Economic Growth,Premises Related Expense,Grounds : R & M : Day to Day : Routine,2101,CB EXCAVATORS LTD,A0000396,25/10/2023,ECO0337286,480,N,,N,N
Pendle Borough Council,Economic Growth,Premises Related Expense,Grounds : R & M : Day to Day : Routine,2101,CB EXCAVATORS LTD,A0000396,12/10/2023,ECO0337028,600,N,,N,N
Pendle Borough Council,Operational Services,Supplies and Services,Other Expenses,4705,CB EXCAVATORS LTD,A0000396,19/10/2023,OPS0337138,2623,N,,N,N
Pendle Borough Council,Economic Growth,Supplies and Services,Other Expenses,4705,CB EXCAVATORS LTD,A0000396,12/10/2023,ECO0337028,6743,N,,N,N
Pendle Borough Council,Operational Services,,Paid in the Year,PD03,CB EXCAVATORS LTD,A0000396,19/10/2023,OPS0337138,36634.44,N,,N,N
Pendle Borough Council,Finance,Indirect Employee Expenses,Training,1211,CIPFA,A0000563,12/10/2023,FIN0337058,12.76,N,,N,N
Pendle Borough Council,Finance,Supplies and Services,Seminars etc All Costs,4601,CIPFA,A0000563,12/10/2023,FIN0337059,240,N,,N,N
Pendle Borough Council,Housing & Environmental Health,Transfer Payments,Storage & Homelessness prevention,6104,CAVALIER TAXIS,A0000638,05/10/2023,HEH0336882,89,N,,N,N
Pendle Borough Council,Operational Services,Transport Related Expense,Tprt : Repairs : General,3105,J DRIVER LTD,A0000884,19/10/2023,OPS0337157,395.4,N,,N,N
Pendle Borough Council,Finance,Supplies and Services,Subscriptions & Donations,4706,DUN & BRADSTREET LIMITED,A0000895,25/10/2023,FIN0337224,500,N,,N,N
Pendle Borough Council,Operational Services,Agency Staff,Emp : Overtime,1002,ENGINEERING & FOUNDRY SUPPLIES,A0001002,25/10/2023,OPS0337216,50.7,N,,N,N
Pendle Borough Council,Housing & Environmental Health,Supplies and Services,Protective Clothing,4201,ENGINEERING & FOUNDRY SUPPLIES,A0001002,05/10/2023,HEH0336793,10.2,N,,N,N
Pendle Borough Council,Operational Services,Supplies and Services,Protective Clothing,4201,ENGINEERING & FOUNDRY SUPPLIES,A0001002,25/10/2023,OPS0337249,31.92,N,,N,N
Pendle Borough Council,Operational Services,Supplies and Services,Protective Clothing,4201,ENGINEERING & FOUNDRY SUPPLIES,A0001002,25/10/2023,OPS0337215,45.8,N,,N,N
Pendle Borough Council,Operational Services,Supplies and Services,Protective Clothing,4201,ENGINEERING & FOUNDRY SUPPLIES,A0001002,12/10/2023,OPS0336977,89.39,N,,N,N
Pendle Borough Council,Operational Services,Supplies and Services,Protective Clothing,4201,ENGINEERING & FOUNDRY SUPPLIES,A0001002,05/10/2023,OPS0336836,114.93,N,,N,N
Pendle Borough Council,Operational Services,,Stock : Purchases,PJ01,ENGINEERING & FOUNDRY SUPPLIES,A0001002,12/10/2023,OPS0336998,163.5,N,,N,N
Pendle Borough Council,Operational Services,,Stock : Purchases,PJ01,ENGINEERING & FOUNDRY SUPPLIES,A0001002,05/10/2023,OPS0336812,249.6,N,,N,N
Pendle Borough Council,Economic Growth,Supplies and Services,Grant Funding,4737,EASTLANCS CHAMBER OF COMMERCE,A0001036,25/10/2023,ECO0337289,13583.31,N,,N,N
Pendle Borough Council,Economic Growth,Supplies and Services,Grant Funding,4737,EASTLANCS CHAMBER OF COMMERCE,A0001036,25/10/2023,ECO0337206,14652.17,N,,N,N
Pendle Borough Council,Economic Growth,Supplies and Services,Grant Funding,4737,EASTLANCS CHAMBER OF COMMERCE,A0001036,25/10/2023,ECO0337290,18131.72,N,,N,N
Pendle Borough Council,Legal & Democratic Services,,Fees Income : Non-VATable,9302,FORBES SOLICITORS,A0001117,12/10/2023,LAD0336961,200,N,,N,N
Pendle Borough Council,Operational Services,Transport Related Expense,Tprt : Repairs : General,3105,FREIGHT TRANSPORT ASSOCIATION,A0001124,12/10/2023,OPS0336997,44,N,,N,N
Pendle Borough Council,Operational Services,Premises Related Expense,Grounds : R & M : Day to Day : Routine,2101,JEWSON LIMITED,A0001323,12/10/2023,OPS0337019,54.07,N,,N,N
Pendle Borough Council,Operational Services,Premises Related Expense,Grounds : R & M : Day to Day : Routine,2101,JEWSON LIMITED,A0001323,05/10/2023,OPS0336834,16.28,N,,N,N
Pendle Borough Council,Operational Services,Premises Related Expense,Grounds : R & M : Day to Day : Routine,2101,JEWSON LIMITED,A0001323,05/10/2023,OPS0336835,94.1,N,,N,N
Pendle Borough Council,Finance,Indirect Employee Expenses,Training,1211,CIPFA BUSINESS LIMITED,A0001556,25/10/2023,FIN0337296,375,N,,N,N
Pendle Borough Council,Operational Services,Premises Related Expense,Grounds : R & M : Day to Day : Routine,2101,LANLEE SUPPLIES LIMITED,A0001672,25/10/2023,OPS0337255,4.88,N,,N,N
Pendle Borough Council,Operational Services,Premises Related Expense,Grounds : R & M : Day to Day : Routine,2101,LANLEE SUPPLIES LIMITED,A0001672,25/10/2023,OPS0337254,285.14,N,,N,N
Pendle Borough Council,Operational Services,Premises Related Expense,Grounds : R & M : Day to Day : Routine,2101,LANLEE SUPPLIES LIMITED,A0001672,12/10/2023,OPS0337020,128.6,N,,N,N
Pendle Borough Council,Operational Services,Supplies and Services,EFM Materials,4004,LANLEE SUPPLIES LIMITED,A0001672,05/10/2023,OPS0336815,34,N,,N,N
Pendle Borough Council,Operational Services,Supplies and Services,EFM Materials,4004,LANLEE SUPPLIES LIMITED,A0001672,19/10/2023,OPS0337132,50.92,N,,N,N
Pendle Borough Council,Operational Services,Transport Related Expense,Tprt : Repairs : General,3105,DICK LEIGH,A0001675,19/10/2023,OPS0337146,91.1,N,,N,N
Pendle Borough Council,Operational Services,Transport Related Expense,Tprt : Repairs : General,3105,DICK LEIGH,A0001675,05/10/2023,OPS0336823,28.26,N,,N,N
Pendle Borough Council,Operational Services,Transport Related Expense,Tprt : Repairs : General,3105,DICK LEIGH,A0001675,05/10/2023,OPS0336821,52.46,N,,N,N
Pendle Borough Council,Operational Services,Transport Related Expense,Tprt : Repairs : General,3105,DICK LEIGH,A0001675,19/10/2023,OPS0337148,77.7,N,,N,N
Pendle Borough Council,Operational Services,Transport Related Expense,Tprt : Repairs : General,3105,DICK LEIGH,A0001675,19/10/2023,OPS0337145,25.23,N,,N,N
Pendle Borough Council,Operational Services,Transport Related Expense,Tprt : Repairs : General,3105,DICK LEIGH,A0001675,05/10/2023,OPS0336822,109.27,N,,N,N
Pendle Borough Council,Operational Services,Transport Related Expense,Tprt : Repairs : General,3105,DICK LEIGH,A0001675,19/10/2023,OPS0337147,37.27,N,,N,N
Pendle Borough Council,Operational Services,Transport Related Expense,Tprt : Repairs : General,3105,DICK LEIGH,A0001675,19/10/2023,OPS0337151,69.09,N,,N,N
Pendle Borough Council,Operational Services,Transport Related Expense,Tprt : Repairs : General,3105,DICK LEIGH,A0001675,05/10/2023,OPS0336845,59.3,N,,N,N
Pendle Borough Council,Operational Services,Transport Related Expense,Tprt : Repairs : General,3105,DICK LEIGH,A0001675,19/10/2023,OPS0337149,72.7,N,,N,N
Pendle Borough Council,Housing & Environmental Health,Supplies and Services,Search Fees,4404,LANCASHIRE COUNTY COUNCIL,A0001690,12/10/2023,HEH0337003,225.72,N,,N,N
Pendle Borough Council,Housing & Environmental Health,Supplies and Services,Other Expenses,4705,LANCASHIRE COUNTY COUNCIL,A0001690,05/10/2023,HEH0336796,1800,N,,N,N
Pendle Borough Council,Operational Services,Transport Related Expense,Tprt : Repairs : General,3105,LIMELIGHT SIGNS LIMITED,A0001796,12/10/2023,OPS0336970,104.48,N,,N,N
Pendle Borough Council,Economic Growth,Premises Related Expense,Bldgs : R & M : Day To Day,2001,MONK OF COLNE LTD,A0001828,25/10/2023,ECO0337287,7817.7,N,,N,N
Pendle Borough Council,Economic Growth,Premises Related Expense,Grounds : R & M : Day to Day : Routine,2101,MONK OF COLNE LTD,A0001828,25/10/2023,ECO0337288,138.5,N,,N,N
Pendle Borough Council,Operational Services,Supplies and Services,Other Expenses,4705,JOHN MACADAM & SON (RESCUE) LTD,A0001846,12/10/2023,OPS0336992,120,N,,N,N
Pendle Borough Council,Operational Services,Supplies and Services,Other Expenses,4705,JOHN MACADAM & SON (RESCUE) LTD,A0001846,12/10/2023,OPS0336993,120,N,,N,N
Pendle Borough Council,Operational Services,Supplies and Services,Other Expenses,4705,JOHN MACADAM & SON (RESCUE) LTD,A0001846,12/10/2023,OPS0336994,120,N,,N,N
Pendle Borough Council,Operational Services,Supplies and Services,Other Expenses,4705,JOHN MACADAM & SON (RESCUE) LTD,A0001846,12/10/2023,OPS0336995,120,N,,N,N
Pendle Borough Council,Property Services,Premises Related Expense,Water & Sewerage,2501,WATER PLUS LIMITED,A0001986,12/10/2023,EST0337050,132.85,N,,N,N
Pendle Borough Council,Property Services,Premises Related Expense,Water & Sewerage,2501,WATER PLUS LIMITED,A0001986,05/10/2023,EST0336855,37.31,N,,N,N
Pendle Borough Council,Property Services,Premises Related Expense,Water & Sewerage,2501,WATER PLUS LIMITED,A0001986,12/10/2023,EST0337052,39.42,N,,N,N
Pendle Borough Council,Property Services,Premises Related Expense,Water & Sewerage,2501,WATER PLUS LIMITED,A0001986,19/10/2023,EST0337183,137.32,N,,N,N
Pendle Borough Council,Property Services,Premises Related Expense,Water & Sewerage,2501,WATER PLUS LIMITED,A0001986,05/10/2023,EST0336854,91.38,N,,N,N
Pendle Borough Council,Property Services,Premises Related Expense,Water & Sewerage,2501,WATER PLUS LIMITED,A0001986,05/10/2023,EST0336849,84.29,N,,N,N
Pendle Borough Council,Property Services,Premises Related Expense,Water & Sewerage,2501,WATER PLUS LIMITED,A0001986,25/10/2023,EST0337273,87.55,N,,N,N
Pendle Borough Council,Property Services,Premises Related Expense,Water & Sewerage,2501,WATER PLUS LIMITED,A0001986,25/10/2023,EST0337272,103.01,N,,N,N
Pendle Borough Council,Property Services,Premises Related Expense,Water & Sewerage,2501,WATER PLUS LIMITED,A0001986,25/10/2023,EST0337270,20.12,N,,N,N
Pendle Borough Council,Property Services,Premises Related Expense,Water & Sewerage,2501,WATER PLUS LIMITED,A0001986,05/10/2023,EST0336852,20.57,N,,N,N
Pendle Borough Council,Property Services,Premises Related Expense,Water & Sewerage,2501,WATER PLUS LIMITED,A0001986,12/10/2023,EST0337053,8,N,,N,N
Pendle Borough Council,Property Services,Premises Related Expense,Water & Sewerage,2501,WATER PLUS LIMITED,A0001986,12/10/2023,EST0337049,1.36,N,,N,N
Pendle Borough Council,Property Services,Premises Related Expense,Water & Sewerage,2501,WATER PLUS LIMITED,A0001986,25/10/2023,EST0337271,1.34,N,,N,N
Pendle Borough Council,Property Services,Premises Related Expense,Water & Sewerage,2501,WATER PLUS LIMITED,A0001986,05/10/2023,EST0336853,21.28,N,,N,N
Pendle Borough Council,Property Services,Premises Related Expense,Water & Sewerage,2501,WATER PLUS LIMITED,A0001986,05/10/2023,EST0336848,43.75,N,,N,N
Pendle Borough Council,Property Services,Premises Related Expense,Water & Sewerage,2501,WATER PLUS LIMITED,A0001986,05/10/2023,EST0336871,43.75,N,,N,N
Pendle Borough Council,Property Services,Premises Related Expense,Water & Sewerage,2501,WATER PLUS LIMITED,A0001986,05/10/2023,EST0336847,639.76,N,,N,N
Pendle Borough Council,Property Services,Premises Related Expense,Water & Sewerage,2501,WATER PLUS LIMITED,A0001986,25/10/2023,EST0337274,196.2,N,,N,N
Pendle Borough Council,Property Services,Premises Related Expense,Water & Sewerage,2501,WATER PLUS LIMITED,A0001986,05/10/2023,EST0336850,201.31,N,,N,N
Pendle Borough Council,Property Services,Premises Related Expense,Water & Sewerage,2501,WATER PLUS LIMITED,A0001986,25/10/2023,EST0337269,17.12,N,,N,N
Pendle Borough Council,Property Services,Premises Related Expense,Water & Sewerage,2501,WATER PLUS LIMITED,A0001986,12/10/2023,EST0337040,381.9,N,,N,N
Pendle Borough Council,Property Services,Premises Related Expense,Water & Sewerage,2501,WATER PLUS LIMITED,A0001986,25/10/2023,EST0337268,31.38,N,,N,N
Pendle Borough Council,Property Services,Premises Related Expense,Water & Sewerage,2501,WATER PLUS LIMITED,A0001986,05/10/2023,EST0336851,74.97,N,,N,N
Pendle Borough Council,Property Services,Premises Related Expense,Water & Sewerage,2501,WATER PLUS LIMITED,A0001986,19/10/2023,EST0337182,40,N,,N,N
Pendle Borough Council,Property Services,Premises Related Expense,Water & Sewerage,2501,WATER PLUS LIMITED,A0001986,19/10/2023,EST0337185,40,N,,N,N
Pendle Borough Council,Property Services,Premises Related Expense,Water & Sewerage,2501,WATER PLUS LIMITED,A0001986,19/10/2023,EST0337185,46,N,,N,N
Pendle Borough Council,Property Services,Premises Related Expense,Water & Sewerage,2501,WATER PLUS LIMITED,A0001986,25/10/2023,EST0337275,2963.58,N,,N,N
Pendle Borough Council,Property Services,Premises Related Expense,Water & Sewerage,2501,WATER PLUS LIMITED,A0001986,12/10/2023,EST0337039,215.36,N,,N,N
Pendle Borough Council,Operational Services,Premises Related Expense,Grounds : R & M : Day to Day : Routine,2101,OPTION HYGIENE LIMITED,A0002063,19/10/2023,OPS0337142,20.13,N,,N,N
Pendle Borough Council,Operational Services,Premises Related Expense,Cleaning Materials,2605,OPTION HYGIENE LIMITED,A0002063,05/10/2023,OPS0336830,8.26,N,,N,N
Pendle Borough Council,Operational Services,,Stock : Purchases,PJ01,OPTION HYGIENE LIMITED,A0002063,19/10/2023,OPS0337133,32.94,N,,N,N
Pendle Borough Council,Operational Services,Premises Related Expense,Bldgs : R & M : Day To Day,2001,POWER PIPES (PENDLE) LIMITED,A0002089,05/10/2023,OPS0336817,20,N,,N,N
Pendle Borough Council,Operational Services,Transport Related Expense,Tprt : Repairs : General,3105,POWER PIPES (PENDLE) LIMITED,A0002089,19/10/2023,OPS0337144,35.75,N,,N,N
Pendle Borough Council,Operational Services,Transport Related Expense,Tprt : Repairs : General,3105,POWER PIPES (PENDLE) LIMITED,A0002089,12/10/2023,OPS0336981,106.48,N,,N,N
Pendle Borough Council,Operational Services,Transport Related Expense,Tprt : Repairs : General,3105,POWER PIPES (PENDLE) LIMITED,A0002089,05/10/2023,OPS0336843,186.04,N,,N,N
Pendle Borough Council,Housing & Environmental Health,Supplies and Services,Postages,4501,ROYAL MAIL GROUP LIMITED,A0002281,19/10/2023,HEH0337122,89.7,N,,N,N
Pendle Borough Council,Housing & Environmental Health,Supplies and Services,Postages,4501,ROYAL MAIL GROUP LIMITED,A0002281,19/10/2023,HEH0337121,110.51,N,,N,N
Pendle Borough Council,Housing & Environmental Health,Supplies and Services,Postages,4501,ROYAL MAIL GROUP LIMITED,A0002281,12/10/2023,HEH0336960,117.6,N,,N,N
Pendle Borough Council,Housing & Environmental Health,Supplies and Services,Postages,4501,ROYAL MAIL GROUP LIMITED,A0002281,12/10/2023,HEH0336960,8.71,N,,N,N
Pendle Borough Council,Housing & Environmental Health,Supplies and Services,Postages,4501,ROYAL MAIL GROUP LIMITED,A0002281,19/10/2023,HEH0337122,10.57,N,,N,N
Pendle Borough Council,Housing & Environmental Health,Supplies and Services,Postages,4501,ROYAL MAIL GROUP LIMITED,A0002281,19/10/2023,HEH0337121,37.05,N,,N,N
Pendle Borough Council,Housing & Environmental Health,Supplies and Services,Postages,4501,ROYAL MAIL GROUP LIMITED,A0002281,19/10/2023,HEH0337121,2.45,N,,N,N
Pendle Borough Council,Housing & Environmental Health,Supplies and Services,Postages,4501,ROYAL MAIL GROUP LIMITED,A0002281,19/10/2023,HEH0337122,3.98,N,,N,N
Pendle Borough Council,Housing & Environmental Health,Supplies and Services,Postages,4501,ROYAL MAIL GROUP LIMITED,A0002281,12/10/2023,HEH0336960,10.08,N,,N,N
Pendle Borough Council,Housing & Environmental Health,Supplies and Services,Postages,4501,ROYAL MAIL GROUP LIMITED,A0002281,12/10/2023,HEH0336960,1.12,N,,N,N
Pendle Borough Council,Housing & Environmental Health,Supplies and Services,Postages,4501,ROYAL MAIL GROUP LIMITED,A0002281,19/10/2023,HEH0337121,4.55,N,,N,N
Pendle Borough Council,Housing & Environmental Health,Supplies and Services,Postages,4501,ROYAL MAIL GROUP LIMITED,A0002281,19/10/2023,HEH0337121,4.37,N,,N,N
Pendle Borough Council,Housing & Environmental Health,Supplies and Services,Postages,4501,ROYAL MAIL GROUP LIMITED,A0002281,19/10/2023,HEH0337121,4.71,N,,N,N
Pendle Borough Council,Housing & Environmental Health,Supplies and Services,Postages,4501,ROYAL MAIL GROUP LIMITED,A0002281,19/10/2023,HEH0337122,11.7,N,,N,N
Pendle Borough Council,Housing & Environmental Health,Supplies and Services,Postages,4501,ROYAL MAIL GROUP LIMITED,A0002281,19/10/2023,HEH0337122,23.76,N,,N,N
Pendle Borough Council,Housing & Environmental Health,Supplies and Services,Postages,4501,ROYAL MAIL GROUP LIMITED,A0002281,12/10/2023,HEH0336960,26.15,N,,N,N
Pendle Borough Council,Housing & Environmental Health,Supplies and Services,Postages,4501,ROYAL MAIL GROUP LIMITED,A0002281,19/10/2023,HEH0337121,24.22,N,,N,N
Pendle Borough Council,Housing & Environmental Health,Supplies and Services,Postages,4501,ROYAL MAIL GROUP LIMITED,A0002281,19/10/2023,HEH0337122,39.74,N,,N,N
Pendle Borough Council,Housing & Environmental Health,Supplies and Services,Postages,4501,ROYAL MAIL GROUP LIMITED,A0002281,12/10/2023,HEH0336960,101.03,N,,N,N
Pendle Borough Council,Housing & Environmental Health,Supplies and Services,Postages,4501,ROYAL MAIL GROUP LIMITED,A0002281,19/10/2023,HEH0337122,62.27,N,,N,N
Pendle Borough Council,Housing & Environmental Health,Supplies and Services,Postages,4501,ROYAL MAIL GROUP LIMITED,A0002281,12/10/2023,HEH0336960,67.76,N,,N,N
Pendle Borough Council,Housing & Environmental Health,Supplies and Services,Postages,4501,ROYAL MAIL GROUP LIMITED,A0002281,19/10/2023,HEH0337121,146.45,N,,N,N
Pendle Borough Council,Housing & Environmental Health,Supplies and Services,Postages,4501,ROYAL MAIL GROUP LIMITED,A0002281,19/10/2023,HEH0337122,25,N,,N,N
Pendle Borough Council,Housing & Environmental Health,Supplies and Services,Postages,4501,ROYAL MAIL GROUP LIMITED,A0002281,12/10/2023,HEH0336960,4.89,N,,N,N
Pendle Borough Council,Housing & Environmental Health,Supplies and Services,Postages,4501,ROYAL MAIL GROUP LIMITED,A0002281,19/10/2023,HEH0337121,9.04,N,,N,N
Pendle Borough Council,Housing & Environmental Health,Supplies and Services,Postages,4501,ROYAL MAIL GROUP LIMITED,A0002281,19/10/2023,HEH0337121,2.67,N,,N,N
Pendle Borough Council,Housing & Environmental Health,Supplies and Services,Postages,4501,ROYAL MAIL GROUP LIMITED,A0002281,19/10/2023,HEH0337121,192.74,N,,N,N
Pendle Borough Council,Housing & Environmental Health,Supplies and Services,Postages,4501,ROYAL MAIL GROUP LIMITED,A0002281,12/10/2023,HEH0336960,196.2,N,,N,N
Pendle Borough Council,Housing & Environmental Health,Supplies and Services,Postages,4501,ROYAL MAIL GROUP LIMITED,A0002281,19/10/2023,HEH0337122,224.51,N,,N,N
Pendle Borough Council,Housing & Environmental Health,Supplies and Services,Postages,4501,ROYAL MAIL GROUP LIMITED,A0002281,19/10/2023,HEH0337122,37.43,N,,N,N
Pendle Borough Council,Housing & Environmental Health,Supplies and Services,Postages,4501,ROYAL MAIL GROUP LIMITED,A0002281,19/10/2023,HEH0337121,53.85,N,,N,N
Pendle Borough Council,Housing & Environmental Health,Supplies and Services,Postages,4501,ROYAL MAIL GROUP LIMITED,A0002281,12/10/2023,HEH0336960,92.82,N,,N,N
Pendle Borough Council,Operational Services,Transport Related Expense,Tprt : Annual Hire Charge,3601,STANLEY BROTHERS (TIPPERS) LTD,A0002422,05/10/2023,OPS0336820,2530,N,,N,N
Pendle Borough Council,Operational Services,Agency Costs,Refuse Collection DLO,5005,STANLEY BROTHERS (TIPPERS) LTD,A0002422,05/10/2023,OPS0336811,390,N,,N,N
Pendle Borough Council,Operational Services,Transport Related Expense,Tprt : Repairs : General,3105,SPALDINGS (UK) LTD,A0002537,19/10/2023,OPS0337143,169.9,N,,N,N
Pendle Borough Council,Operational Services,Supplies and Services,Protective Clothing,4201,SPALDINGS (UK) LTD,A0002537,19/10/2023,OPS4006750,-80,N,,N,N
Pendle Borough Council,Operational Services,Premises Related Expense,Bldgs : R & M : Day To Day,2001,ROBERTSON MEMORIALS,A0002590,25/10/2023,OPS0337250,45,N,,N,N
Pendle Borough Council,Economic Growth,Premises Related Expense,Bldgs : R & M : Day To Day,2001,T & F STEEL DESIGNS LTD,A0002627,25/10/2023,ECO0337198,220,N,,N,N
Pendle Borough Council,Economic Growth,Premises Related Expense,Bldgs : R & M : Day To Day,2001,T & F STEEL DESIGNS LTD,A0002627,25/10/2023,ECO0337198,528,N,,N,N
Pendle Borough Council,Economic Growth,Premises Related Expense,Grounds : R & M : Day to Day : Routine,2101,T & F STEEL DESIGNS LTD,A0002627,12/10/2023,ECO0337036,90,N,,N,N
Pendle Borough Council,Economic Growth,Premises Related Expense,Grounds : R & M : Day to Day : Routine,2101,T & F STEEL DESIGNS LTD,A0002627,12/10/2023,ECO0337036,310,N,,N,N
Pendle Borough Council,Housing & Environmental Health,Capital Costs,Ren Grant : 1996 Act,CH22,CLOSOMAT LIMITED,A0002685,05/10/2023,HEH0336874,4925,N,,N,N
Pendle Borough Council,Policy & Commissioning,Supplies and Services,Publicity & advertisement,4704,TRISTAR PRINTERS LTD,A0002731,19/10/2023,POL0337208,35,N,,N,N
Pendle Borough Council,Policy & Commissioning,Supplies and Services,Publicity & advertisement,4704,TRISTAR PRINTERS LTD,A0002731,19/10/2023,POL0337109,70,N,,N,N
Pendle Borough Council,Policy & Commissioning,Supplies and Services,Publicity & advertisement,4704,TRISTAR PRINTERS LTD,A0002731,19/10/2023,POL0337209,84,N,,N,N
Pendle Borough Council,Operational Services,Agency Staff,Emp : Agency Wages,1004,DHRB LIMITED T/A DRIVER HIRE (45680),A0003556,12/10/2023,OPS0337005,144.52,N,,N,N
Pendle Borough Council,Operational Services,Agency Staff,Emp : Agency Wages,1004,DHRB LIMITED T/A DRIVER HIRE (45680),A0003556,12/10/2023,OPS0337009,602.59,N,,N,N
Pendle Borough Council,Operational Services,Agency Staff,Emp : Agency Wages,1004,DHRB LIMITED T/A DRIVER HIRE (45680),A0003556,12/10/2023,OPS0337009,428.49,N,,N,N
Pendle Borough Council,Operational Services,Agency Staff,Emp : Agency Wages,1004,DHRB LIMITED T/A DRIVER HIRE (45680),A0003556,12/10/2023,OPS0336984,780.43,N,,N,N
Pendle Borough Council,Operational Services,Agency Staff,Emp : Agency Wages,1004,DHRB LIMITED T/A DRIVER HIRE (45680),A0003556,12/10/2023,OPS0336985,939.41,N,,N,N
Pendle Borough Council,Operational Services,Supplies and Services,Sub-Contractors,4007,DHRB LIMITED T/A DRIVER HIRE (45680),A0003556,12/10/2023,OPS0337005,144.53,N,,N,N
Pendle Borough Council,Operational Services,Transport Related Expense,Diesel Oil,3202,CERTAS ENERGY UK T/A TOWNSON BROS,A0005683,25/10/2023,OPS0337245,1487.5,N,,N,N
Pendle Borough Council,Operational Services,Transport Related Expense,Diesel Oil,3202,CERTAS ENERGY UK T/A TOWNSON BROS,A0005683,25/10/2023,OPS0337245,1487.5,N,,N,N
Pendle Borough Council,Operational Services,Transport Related Expense,Diesel Oil,3202,CERTAS ENERGY UK T/A TOWNSON BROS,A0005683,25/10/2023,OPS0337245,1487.5,N,,N,N
Pendle Borough Council,Operational Services,Transport Related Expense,Diesel Oil,3202,CERTAS ENERGY UK T/A TOWNSON BROS,A0005683,25/10/2023,OPS0337245,1487.5,N,,N,N
Pendle Borough Council,Operational Services,Transport Related Expense,Tprt : Repairs : General,3105,F G ROWLAND LIMITED,A0006489,12/10/2023,OPS0336980,1305.9,N,,N,N
Pendle Borough Council,Legal & Democratic Services,Indirect Employee Expenses,Staff Refreshments,1261,PHILIP SANDERSON,A0006611,12/10/2023,LAD0337002,27.8,N,,N,N
Pendle Borough Council,Legal & Democratic Services,Supplies and Services,Hospitality,4611,PHILIP SANDERSON,A0006611,12/10/2023,LAD0337002,27.75,N,,N,N
Pendle Borough Council,Property Services,Indirect Employee Expenses,Staff Refreshments,1261,VENDA VALET (MACHINES) LTD,A0009649,05/10/2023,EST0336856,65,N,,N,N
Pendle Borough Council,Economic Growth,Supplies and Services,Grant Funding,4737,PENDLE LEISURE LIMITED,A0012961,25/10/2023,ECO0337291,13994.21,N,XR43029,N,N
Pendle Borough Council,Policy & Commissioning,,Lancashire County Council,9109,PENDLE LEISURE LIMITED,A0012961,25/10/2023,POL0337261,15056.75,N,XR43029,N,N
Pendle Borough Council,Policy & Commissioning,,Lancashire County Council,9109,PENDLE LEISURE LIMITED,A0012961,25/10/2023,POL0337262,15056.75,N,XR43029,N,N
Pendle Borough Council,Operational Services,Agency Staff,Emp : Agency Wages,1004,LANDSCAPE ENGINEERING LTD,A0013135,12/10/2023,OPS0336972,3087.3,N,,N,N
Pendle Borough Council,Operational Services,Agency Staff,Emp : Agency Wages,1004,LANDSCAPE ENGINEERING LTD,A0013135,12/10/2023,OPS0336973,3400,N,,N,N
Pendle Borough Council,Operational Services,Supplies and Services,Sub-Contractors,4007,LANDSCAPE ENGINEERING LTD,A0013135,12/10/2023,OPS0336975,2672.2,N,,N,N
Pendle Borough Council,Operational Services,Supplies and Services,Sub-Contractors,4007,LANDSCAPE ENGINEERING LTD,A0013135,12/10/2023,OPS0336974,2800,N,,N,N
Pendle Borough Council,Operational Services,Supplies and Services,Sub-Contractors,4007,ORCHARD RECYCLING SERVICE,A0015803,25/10/2023,OPS0337244,2279.2,N,,N,N
Pendle Borough Council,Operational Services,Supplies and Services,Sub-Contractors,4007,ORCHARD RECYCLING SERVICE,A0015803,12/10/2023,OPS0337004,2625.7,N,,N,N
Pendle Borough Council,Operational Services,Supplies and Services,Sub-Contractors,4007,ORCHARD RECYCLING SERVICE,A0015803,05/10/2023,OPS0336814,2710.4,N,,N,N
Pendle Borough Council,Operational Services,Supplies and Services,Sub-Contractors,4007,ORCHARD RECYCLING SERVICE,A0015803,19/10/2023,OPS0337124,2725.8,N,,N,N
Pendle Borough Council,Operational Services,Premises Related Expense,Bldgs : R & M : Day To Day,2001,SAANRO INTERNATIONAL LTD,A0021480,12/10/2023,OPS0336996,689.2,N,,N,N
Pendle Borough Council,Operational Services,Supplies and Services,Sub-Contractors,4007,ASPEN VALLEY KENNELS & CATTERY,A0022106,19/10/2023,OPS0337125,686,N,,N,N
Pendle Borough Council,Operational Services,Supplies and Services,Other Expenses,4705,ASPEN VALLEY KENNELS & CATTERY,A0022106,19/10/2023,OPS0337125,788.6,N,,N,N
Pendle Borough Council,Housing & Environmental Health,Supplies and Services,Other Expenses,4705,GRADKO INTERNATIONAL LTD,A0025806,19/10/2023,HEH0337112,211.25,N,,N,N
Pendle Borough Council,Property Services,Premises Related Expense,Service Charge,2702,BARNFIELD INVESTMENT PROPERTIES LTD,A0026595,12/10/2023,EST0337046,2484.13,N,,N,N
Pendle Borough Council,"Planning, Building Control & Regulatory Services",Indirect Employee Expenses,Training,1211,WILDLIFE TRUST FOR LANCS MANCHESTER & N MERSEYSIDE,A0026880,19/10/2023,PBC0337069,748.6,N,229325,N,N
Pendle Borough Council,Housing & Environmental Health,Supplies and Services,Mobile Phones,4508,VODAFONE LTD,A0040344,05/10/2023,HEH0336794,260,N,,N,N
Pendle Borough Council,Legal & Democratic Services,Supplies and Services,Seminars etc All Costs,4601,THE ASSOCIATION OF ELECTORAL ADMINISTRATORS,A0040939,12/10/2023,LAD0336952,190,N,,N,N
Pendle Borough Council,Economic Growth,Capital Costs,Capital : Salaries,CD13,D J LINGARD & ASSOCIATES LTD,A0042727,25/10/2023,ECO0337199,120,N,,N,N
Pendle Borough Council,Operational Services,Premises Related Expense,Grounds : R & M : Day to Day : Routine,2101,C & R WALNE ENGRAVERS,A0042734,05/10/2023,OPS0336838,42.1,N,,N,N
Pendle Borough Council,Operational Services,Premises Related Expense,Grounds : R & M : Day to Day : Routine,2101,C & R WALNE ENGRAVERS,A0042734,19/10/2023,OPS0337141,46,N,,N,N
Pendle Borough Council,Operational Services,Premises Related Expense,Grounds : R & M : Day to Day : Routine,2101,C & R WALNE ENGRAVERS,A0042734,05/10/2023,OPS0336837,109.6,N,,N,N
Pendle Borough Council,Operational Services,Indirect Employee Expenses,Training,1211,TERBERG MATEC UK,A0043970,12/10/2023,OPS0336990,600,N,,N,N
Pendle Borough Council,Property Services,Premises Related Expense,Electricity,2203,NPOWER,A0048483,12/10/2023,EST0337056,726.29,N,,N,N
Pendle Borough Council,"Planning, Building Control & Regulatory Services",Supplies and Services,EFM : Other Equipment,4003,VIP SYSTEM LIMITED,A0050529,05/10/2023,PBC0336846,1782.4,N,,N,N
Pendle Borough Council,Finance,Premises Related Expense,Rents,2301,LIBERATA UK LTD,A0051618,12/10/2023,FIN0337060,514.83,N,,N,N
Pendle Borough Council,Finance,Supplies and Services,Miscellaneous : Other,4707,LIBERATA UK LTD,A0051618,05/10/2023,FIN0336884,334.45,N,,N,N
Pendle Borough Council,Finance,Capital Costs,Capital : Salaries,CD13,LIBERATA UK LTD,A0051618,12/10/2023,FIN0337062,7620,N,,N,N
Pendle Borough Council,Economic Growth,Capital Costs,Capital: Design Fees,CD53,LIBERATA UK LTD,A0051618,12/10/2023,ECO0337030,832.62,N,,N,N
Pendle Borough Council,Economic Growth,Capital Costs,Capital: Design Fees,CD53,LIBERATA UK LTD,A0051618,12/10/2023,ECO0337031,2420.13,N,,N,N
Pendle Borough Council,Economic Growth,Capital Costs,Capital: Design Fees,CD53,LIBERATA UK LTD,A0051618,12/10/2023,ECO0337025,3947.83,N,,N,N
Pendle Borough Council,Finance,Capital Costs,Miscellaneous,ce4f,LIBERATA UK LTD,A0051618,19/10/2023,FIN0337220,4840.26,N,,N,N
Pendle Borough Council,Finance,Capital Costs,Miscellaneous,CE4F,LIBERATA UK LTD,A0051618,19/10/2023,FIN0337219,1665.24,N,,N,N
Pendle Borough Council,Housing & Environmental Health,Capital Costs,Ren Grant : 1996 Act,CH22,LIBERATA UK LTD,A0051618,19/10/2023,HEH0337113,1462.76,N,,N,N
Pendle Borough Council,Operational Services,Supplies and Services,Other Expenses,4705,IPL PLASTICS (UK) LIMITED,A0052535,25/10/2023,OPS0337283,1675,N,,N,N
Pendle Borough Council,Operational Services,Supplies and Services,Other Expenses,4705,IPL PLASTICS (UK) LIMITED,A0052535,12/10/2023,OPS0337038,2850,N,,N,N
Pendle Borough Council,Operational Services,Supplies and Services,Other Expenses,4705,IPL PLASTICS (UK) LIMITED,A0052535,12/10/2023,OPS0337038,8505,N,,N,N
Pendle Borough Council,Economic Growth,Supplies and Services,EFM Materials,4004,OFFICE FOR NATIONAL STATISTICS,A0055208,25/10/2023,ECO0337295,150,N,,N,N
Pendle Borough Council,Operational Services,Indirect Employee Expenses,Training,1211,BEN SHAW TRAINING LIMITED,A0055722,12/10/2023,OPS0337017,270,N,,N,N
Pendle Borough Council,Human Resources,Supplies and Services,Seminars etc All Costs,4601,BEN SHAW TRAINING LIMITED,A0055722,05/10/2023,PER0336803,210,N,,N,N
Pendle Borough Council,Human Resources,Supplies and Services,Seminars etc All Costs,4601,BEN SHAW TRAINING LIMITED,A0055722,05/10/2023,PER0336803,1400,N,,N,N
Pendle Borough Council,Legal & Democratic Services,Supplies and Services,Printing & Stationery,4301,CIVICA UK LIMITED,A0057595,05/10/2023,LAD0336809,605,N,,N,N
Pendle Borough Council,Operational Services,Premises Related Expense,Bldgs : R & M : Day To Day,2001,P LEE WASTE OIL LIMTED,A0058412,05/10/2023,OPS0336819,820,N,,N,N
Pendle Borough Council,"Planning, Building Control & Regulatory Services",,Neighbourhood Renewal Fund,9003,REDACT - PERSONAL DATA,A0058865,12/10/2023,PBC0336645,88.3,N,,N,N
Pendle Borough Council,"Planning, Building Control & Regulatory Services",Supplies and Services,Adverts : Statutory Notice,4702,NATIONAL WORLD PUBLISHING LTD,A0059640,12/10/2023,PBC0336955,338.01,N,,N,N
Pendle Borough Council,Housing & Environmental Health,Transfer Payments,Accommodation ,6103,HILL VIEW (PRIVATE) HOTEL,A0059754,25/10/2023,HEH0337238,20210,N,,N,N
Pendle Borough Council,Housing & Environmental Health,Supplies and Services,Other Expenses,4705,TRAWDEN FOREST PARISH COUNCIL,A0062286,25/10/2023,HEH0337242,245,N,,N,N
Pendle Borough Council,Property Services,Premises Related Expense,Bldgs : R & M : Day To Day,2001,KEYPLUS SECURITY LIMITED,A0062723,19/10/2023,EST0337175,26.41,N,,N,N
Pendle Borough Council,Operational Services,Premises Related Expense,Grounds : R & M : Day to Day : Routine,2101,BOUNCEBACK SAFETY SERVICES LTD,A0063002,12/10/2023,OPS0336968,490,N,,N,N
Pendle Borough Council,Operational Services,Premises Related Expense,Bldgs : R & M : Day To Day,2001,NORTH WEST TRADING COMPANY,A0063527,12/10/2023,OPS0337016,42.26,N,,N,N
Pendle Borough Council,Operational Services,Premises Related Expense,Grounds : R & M : Day to Day : Routine,2101,KOMPAN LTD,A0064282,05/10/2023,OPS0336831,425,N,,N,N
Pendle Borough Council,Operational Services,Capital Costs,Capital : Payments,CD14,KOMPAN LTD,A0064282,05/10/2023,OPS0336832,685.71,N,,N,N
Pendle Borough Council,Operational Services,Capital Costs,Capital : Payments,CD14,KOMPAN LTD,A0064282,05/10/2023,OPS0336828,1071.43,N,,N,N
Pendle Borough Council,Operational Services,Capital Costs,Capital : Payments,CD14,KOMPAN LTD,A0064282,19/10/2023,OPS0337139,98000,N,,N,N
Pendle Borough Council,Legal & Democratic Services,Premises Related Expense,Rents,2301,THE RAINHALL CENTRE,A0066193,05/10/2023,LAD0336810,45,N,,N,N
Pendle Borough Council,Human Resources,Transport Related Expense,Tprt : Annual Hire Charge,3601,LEX AUTOLEASE LIMITED,A0066530,25/10/2023,PER0337227,343.04,N,,N,N
Pendle Borough Council,Property Services,Premises Related Expense,Bldgs : R & M : Day To Day,2001,SPEAKMAN CONTRACTORS LTD,A0066581,12/10/2023,EST0337054,51.3,N,,N,N
Pendle Borough Council,Property Services,Premises Related Expense,Bldgs : R & M : Day To Day,2001,SPEAKMAN CONTRACTORS LTD,A0066581,12/10/2023,EST0337054,1153.87,N,,N,N
Pendle Borough Council,Property Services,Premises Related Expense,Bldgs : R & M : Day To Day,2001,SPEAKMAN CONTRACTORS LTD,A0066581,12/10/2023,EST0337054,41.9,N,,N,N
Pendle Borough Council,Property Services,Premises Related Expense,Bldgs : R & M : Day To Day,2001,SPEAKMAN CONTRACTORS LTD,A0066581,12/10/2023,EST0337054,4084.41,N,,N,N
Pendle Borough Council,Property Services,Supplies and Services,Other Expenses,4705,SPEAKMAN CONTRACTORS LTD,A0066581,12/10/2023,EST0337054,5439.15,N,,N,N
Pendle Borough Council,Human Resources,Indirect Employee Expenses,Emp : Medical Expenses,1236,PEOPLE ASSET MANAGEMENT LIMITED,A0067613,05/10/2023,PER0336802,110,N,,N,N
Pendle Borough Council,Human Resources,Indirect Employee Expenses,Emp : Medical Expenses,1236,PEOPLE ASSET MANAGEMENT LIMITED,A0067613,19/10/2023,PER0337103,142.5,N,,N,N
Pendle Borough Council,Human Resources,Indirect Employee Expenses,Emp : Medical Expenses,1236,PEOPLE ASSET MANAGEMENT LIMITED,A0067613,05/10/2023,PER0336801,145,N,,N,N
Pendle Borough Council,Human Resources,Indirect Employee Expenses,Emp : Medical Expenses,1236,PEOPLE ASSET MANAGEMENT LIMITED,A0067613,25/10/2023,PER0337226,259.19,N,,N,N
Pendle Borough Council,Finance,Transport Related Expense,Tprt : Repairs : General,3105,PROBRUSH T/A NORTHERN MUNICIPAL SPARES LTD,A0068263,05/10/2023,FIN4006733,-1020.45,N,,N,N
Pendle Borough Council,Operational Services,Transport Related Expense,Tprt : Repairs : General,3105,PROBRUSH T/A NORTHERN MUNICIPAL SPARES LTD,A0068263,05/10/2023,OPS0336104,150.63,N,,N,N
Pendle Borough Council,Operational Services,Transport Related Expense,Tprt : Repairs : General,3105,PROBRUSH T/A NORTHERN MUNICIPAL SPARES LTD,A0068263,05/10/2023,OPS0336816,343.56,N,,N,N
Pendle Borough Council,Operational Services,Transport Related Expense,Tprt : Repairs : General,3105,PROBRUSH T/A NORTHERN MUNICIPAL SPARES LTD,A0068263,05/10/2023,OPS0336104,150.63,N,,N,N
Pendle Borough Council,Operational Services,Transport Related Expense,Tprt : Repairs : General,3105,PROBRUSH T/A NORTHERN MUNICIPAL SPARES LTD,A0068263,05/10/2023,OPS0336816,168.06,N,,N,N
Pendle Borough Council,Operational Services,Transport Related Expense,Tprt : Repairs : General,3105,PROBRUSH T/A NORTHERN MUNICIPAL SPARES LTD,A0068263,05/10/2023,OPS0336104,150.63,N,,N,N
Pendle Borough Council,Operational Services,Transport Related Expense,Tprt : Repairs : General,3105,PROBRUSH T/A NORTHERN MUNICIPAL SPARES LTD,A0068263,05/10/2023,OPS0336816,168.06,N,,N,N
Pendle Borough Council,Operational Services,Transport Related Expense,Tprt : Repairs : General,3105,PROBRUSH T/A NORTHERN MUNICIPAL SPARES LTD,A0068263,05/10/2023,OPS0336104,150.63,N,,N,N
Pendle Borough Council,Operational Services,Transport Related Expense,Tprt : Repairs : General,3105,PROBRUSH T/A NORTHERN MUNICIPAL SPARES LTD,A0068263,05/10/2023,OPS0336816,168.06,N,,N,N
Pendle Borough Council,Operational Services,Transport Related Expense,Tprt : Repairs : General,3105,PROBRUSH T/A NORTHERN MUNICIPAL SPARES LTD,A0068263,05/10/2023,OPS0336816,168.07,N,,N,N
Pendle Borough Council,Operational Services,Transport Related Expense,Tprt : Repairs : General,3105,PROBRUSH T/A NORTHERN MUNICIPAL SPARES LTD,A0068263,05/10/2023,OPS0336104,150.62,N,,N,N
Pendle Borough Council,Operational Services,Transport Related Expense,Tprt : Repairs : General,3105,PROBRUSH T/A NORTHERN MUNICIPAL SPARES LTD,A0068263,05/10/2023,OPS0336816,168.07,N,,N,N
Pendle Borough Council,Economic Growth,Supplies and Services,Processing Fees,4424,CHIPSIDE LTD,A0068587,12/10/2023,ECO0337029,11.2,N,,N,N
Pendle Borough Council,Housing & Environmental Health,Supplies and Services,Other Expenses,4705,ACCENT REGENERATION LIMITED,A0069320,05/10/2023,HEH0336873,257.73,N,,N,N
Pendle Borough Council,Legal & Democratic Services,Supplies and Services,Insurances,4701,ZURICH INSURANCE,A0070214,12/10/2023,LAD0337001,252,N,,N,N
Pendle Borough Council,Housing & Environmental Health,Supplies and Services,Private Water Supply Expenditure,4425,UNITED UTILITIES WATER PLC,A0072400,05/10/2023,HEH0336792,741.17,N,,N,N
Pendle Borough Council,Operational Services,Supplies and Services,Sub-Contractors,4007,RENTOKIL INITIAL UK LIMITED,A0072816,19/10/2023,OPS0337158,150.29,N,,N,N
Pendle Borough Council,Operational Services,Supplies and Services,Sub-Contractors,4007,RENTOKIL INITIAL UK LIMITED,A0072816,12/10/2023,OPS0337013,262.7,N,,N,N
Pendle Borough Council,Operational Services,Supplies and Services,Sub-Contractors,4007,RENTOKIL INITIAL UK LIMITED,A0072816,19/10/2023,OPS0337158,6.34,N,,N,N
Pendle Borough Council,Operational Services,Supplies and Services,Sub-Contractors,4007,RENTOKIL INITIAL UK LIMITED,A0072816,12/10/2023,OPS0337013,53.57,N,,N,N
Pendle Borough Council,Operational Services,Supplies and Services,Sub-Contractors,4007,RENTOKIL INITIAL UK LIMITED,A0072816,19/10/2023,OPS0337158,92.14,N,,N,N
Pendle Borough Council,Operational Services,Premises Related Expense,Grounds : R & M : Day to Day : Routine,2101,FENLAND LEISURE PRODUCTS LIMITED,A0072950,25/10/2023,OPS0337217,231.8,N,,N,N
Pendle Borough Council,Housing & Environmental Health,Capital Costs,Ren Grant : 1996 Act,CH22,OCEAN BATHROOMS TILES & HEATING LTD,A0075367,19/10/2023,HEH0337110,6190.6,N,,N,N
Pendle Borough Council,Operational Services,Transport Related Expense,Tprt : Repairs : General,3105,REDACT - PERSONAL DATA,A0075901,19/10/2023,OPS0337164,350,N,,N,N
Pendle Borough Council,Finance,Supplies and Services,Subscriptions & Donations,4706,VODAFONE LIMITED,A0076999,12/10/2023,FIN0337063,1057.89,N,,N,N
Pendle Borough Council,Legal & Democratic Services,Supplies and Services,Printing & Stationery,4301,THOMSON REUTERS PROFESSIONAL UK LIMITED,A0077400,12/10/2023,LAD0336957,343,N,,N,N
Pendle Borough Council,Legal & Democratic Services,Supplies and Services,Printing & Stationery,4301,THOMSON REUTERS PROFESSIONAL UK LIMITED,A0077400,12/10/2023,LAD0336962,1153.95,N,,N,N
Pendle Borough Council,Housing & Environmental Health,Supplies and Services,Other Expenses,4705,FOULRIDGE PARISH COUNCIL,A0077715,19/10/2023,HEH0337119,3000,N,,N,N
Pendle Borough Council,Operational Services,Supplies and Services,EFM : Other Equipment,4003,GLASDON UK LIMITED,A0078667,12/10/2023,OPS0337012,2670.22,N,,N,N
Pendle Borough Council,Economic Growth,Supplies and Services,Consultants Fees,4401,IN-SITU,A0079936,12/10/2023,ECO0337027,8202.85,N,,N,N
Pendle Borough Council,Economic Growth,Supplies and Services,Consultants Fees,4401,IN-SITU,A0079936,25/10/2023,ECO0337026,23942.04,N,,N,N
Pendle Borough Council,Policy & Commissioning,Supplies and Services,Children`s holiday activities,4716,IN-SITU,A0079936,05/10/2023,POL0336806,4759.16,N,,N,N
Pendle Borough Council,Economic Growth,Capital Costs,Public Realm,CD20,IN-SITU,A0079936,12/10/2023,ECO0337027,5969,N,,N,N
Pendle Borough Council,Economic Growth,Capital Costs,Public Realm,CD20,IN-SITU,A0079936,25/10/2023,ECO0337026,7178.99,N,,N,N
Pendle Borough Council,Operational Services,Premises Related Expense,Grounds : R & M : Day to Day : Routine,2101,RICHARD PEEL GROUNDCARE LIMITED,A0081331,12/10/2023,OPS0336978,2625,N,,N,N
Pendle Borough Council,Operational Services,Premises Related Expense,Grounds : R & M : Day to Day : Routine,2101,BARLEY WITH WHEATLEY BOOTH PC,A0082828,19/10/2023,OPS0337137,236.92,N,,N,N
Pendle Borough Council,Housing & Environmental Health,Supplies and Services,Other Expenses,4705,BARLEY WITH WHEATLEY BOOTH PC,A0082828,25/10/2023,HEH0337257,1500,N,,N,N
Pendle Borough Council,Finance,Supplies and Services,Allpay,4422,ALLPAY LIMITED,A0084372,05/10/2023,FIN0336889,11,N,,N,N
Pendle Borough Council,Finance,Supplies and Services,Allpay,4422,ALLPAY LIMITED,A0084372,05/10/2023,FIN0336888,12.01,N,,N,N
Pendle Borough Council,Finance,Supplies and Services,Allpay,4422,ALLPAY LIMITED,A0084372,05/10/2023,FIN0336885,18.73,N,,N,N
Pendle Borough Council,Finance,Supplies and Services,Allpay,4422,ALLPAY LIMITED,A0084372,05/10/2023,FIN0336886,23.76,N,,N,N
Pendle Borough Council,Finance,Supplies and Services,Allpay,4422,ALLPAY LIMITED,A0084372,05/10/2023,FIN0336890,57.2,N,,N,N
Pendle Borough Council,Finance,Supplies and Services,Allpay,4422,ALLPAY LIMITED,A0084372,05/10/2023,FIN0336887,2079.07,N,,N,N
Pendle Borough Council,Housing & Environmental Health,,Housing Impts/Cap Repairs,0104,ELITE PLUMBING,A0084584,25/10/2023,HEH0337258,1960,N,,N,N
Pendle Borough Council,Economic Growth,Premises Related Expense,Grounds : R & M : Day to Day : Routine,2101,KEVIN WILKINSON LANDSCAPES LTD,A0085660,12/10/2023,ECO0336881,279,N,,N,N
Pendle Borough Council,Property Services,Premises Related Expense,Bldgs : R & M : Day To Day,2001,CATCHPOINT (UK) LIMITED,A0089500,05/10/2023,EST0336869,65,N,,N,N
Pendle Borough Council,Property Services,Premises Related Expense,Bldgs : R & M : Day To Day,2001,CATCHPOINT (UK) LIMITED,A0089500,05/10/2023,EST0336867,160,N,,N,N
Pendle Borough Council,Property Services,Premises Related Expense,Bldgs : R & M : Day To Day,2001,CATCHPOINT (UK) LIMITED,A0089500,05/10/2023,EST0336868,160,N,,N,N
Pendle Borough Council,Property Services,Premises Related Expense,Bldgs : R & M : Day To Day,2001,CATCHPOINT (UK) LIMITED,A0089500,05/10/2023,EST0336866,160,N,,N,N
Pendle Borough Council,"Planning, Building Control & Regulatory Services",Supplies and Services,EFM : Other Equipment,4003,DRIVER HIRE TRAINING,A0089848,05/10/2023,PBC0336879,1687.5,N,,N,N
Pendle Borough Council,Finance,Supplies and Services,Subscriptions & Donations,4706,INFORM CPI LIMITED,A0089895,19/10/2023,FIN0337108,522,N,,N,N
Pendle Borough Council,Housing & Environmental Health,Supplies and Services,Other Expenses,4705,ULTIMATE PROPERTY SOLUTIONS,A0090032,12/10/2023,HEH0336958,600,N,,N,N
Pendle Borough Council,Operational Services,Premises Related Expense,Grounds : R & M : Day to Day : Routine,2101,SALTERFORTH NURSERIES & GARDEN CTR LTD,A0090064,25/10/2023,OPS0337251,90,N,,N,N
Pendle Borough Council,Policy & Commissioning,Supplies and Services,Publicity & advertisement,4704,WE LOVE CREATIVE LIMITED,A0090098,12/10/2023,POL0336963,400,N,,N,N
Pendle Borough Council,Policy & Commissioning,Supplies and Services,Publicity & advertisement,4704,WE LOVE CREATIVE LIMITED,A0090098,12/10/2023,POL0336964,400,N,,N,N
Pendle Borough Council,Operational Services,Premises Related Expense,Grounds : R & M : Day to Day : Routine,2101,LANDSCAPE SUPPLY COMPANY,A0090209,25/10/2023,OPS0337253,200,N,,N,N
Pendle Borough Council,Operational Services,Premises Related Expense,Grounds : R & M : Day to Day : Routine,2101,LANDSCAPE SUPPLY COMPANY,A0090209,25/10/2023,OPS0337253,214.27,N,,N,N
Pendle Borough Council,Operational Services,Premises Related Expense,Grounds : R & M : Day to Day : Routine,2101,LANDSCAPE SUPPLY COMPANY,A0090209,25/10/2023,OPS0337253,100,N,,N,N
Pendle Borough Council,Operational Services,Premises Related Expense,Grounds : R & M : Day to Day : Routine,2101,LANDSCAPE SUPPLY COMPANY,A0090209,05/10/2023,OPS0336841,119.76,N,,N,N
Pendle Borough Council,Finance,Transport Related Expense,Diesel Oil,3202,FUELMATE LTD,A0090265,24/10/2023,FIN0337401,133.73,N,,N,N
Pendle Borough Council,Finance,Transport Related Expense,Diesel Oil,3202,FUELMATE LTD,A0090265,17/10/2023,FIN0337400,167.28,N,,N,N
Pendle Borough Council,Finance,Transport Related Expense,Diesel Oil,3202,FUELMATE LTD,A0090265,10/10/2023,FIN0337399,228.82,N,,N,N
Pendle Borough Council,Finance,Transport Related Expense,Diesel Oil,3202,FUELMATE LTD,A0090265,03/10/2023,FIN0337398,260.14,N,,N,N
Pendle Borough Council,Finance,Transport Related Expense,Diesel Oil,3202,FUELMATE LTD,A0090265,17/10/2023,FIN0337400,274.5,N,,N,N
Pendle Borough Council,Finance,Transport Related Expense,Diesel Oil,3202,FUELMATE LTD,A0090265,03/10/2023,FIN0337398,321.83,N,,N,N
Pendle Borough Council,Finance,Transport Related Expense,Diesel Oil,3202,FUELMATE LTD,A0090265,24/10/2023,FIN0337401,334.24,N,,N,N
Pendle Borough Council,Finance,Transport Related Expense,Diesel Oil,3202,FUELMATE LTD,A0090265,31/10/2023,FIN0337402,338.82,N,,N,N
Pendle Borough Council,Finance,Transport Related Expense,Diesel Oil,3202,FUELMATE LTD,A0090265,10/10/2023,FIN0337399,366.57,N,,N,N
Pendle Borough Council,Finance,Transport Related Expense,Diesel Oil,3202,FUELMATE LTD,A0090265,17/10/2023,FIN0337400,288.1,N,,N,N
Pendle Borough Council,Finance,Transport Related Expense,Diesel Oil,3202,FUELMATE LTD,A0090265,03/10/2023,FIN0337398,305.49,N,,N,N
Pendle Borough Council,Finance,Transport Related Expense,Diesel Oil,3202,FUELMATE LTD,A0090265,24/10/2023,FIN0337401,320.23,N,,N,N
Pendle Borough Council,Finance,Transport Related Expense,Diesel Oil,3202,FUELMATE LTD,A0090265,31/10/2023,FIN0337402,337.71,N,,N,N
Pendle Borough Council,Finance,Transport Related Expense,Diesel Oil,3202,FUELMATE LTD,A0090265,10/10/2023,FIN0337399,362.24,N,,N,N
Pendle Borough Council,Finance,Transport Related Expense,Diesel Oil,3202,FUELMATE LTD,A0090265,17/10/2023,FIN0337400,275.52,N,,N,N
Pendle Borough Council,Finance,Transport Related Expense,Diesel Oil,3202,FUELMATE LTD,A0090265,31/10/2023,FIN0337402,320.19,N,,N,N
Pendle Borough Council,Finance,Transport Related Expense,Diesel Oil,3202,FUELMATE LTD,A0090265,03/10/2023,FIN0337398,322.27,N,,N,N
Pendle Borough Council,Finance,Transport Related Expense,Diesel Oil,3202,FUELMATE LTD,A0090265,10/10/2023,FIN0337399,338.64,N,,N,N
Pendle Borough Council,Finance,Transport Related Expense,Diesel Oil,3202,FUELMATE LTD,A0090265,24/10/2023,FIN0337401,385.5,N,,N,N
Pendle Borough Council,Finance,Transport Related Expense,Diesel Oil,3202,FUELMATE LTD,A0090265,24/10/2023,FIN0337401,254.87,N,,N,N
Pendle Borough Council,Finance,Transport Related Expense,Diesel Oil,3202,FUELMATE LTD,A0090265,03/10/2023,FIN0337398,292.42,N,,N,N
Pendle Borough Council,Finance,Transport Related Expense,Diesel Oil,3202,FUELMATE LTD,A0090265,10/10/2023,FIN0337399,310.13,N,,N,N
Pendle Borough Council,Finance,Transport Related Expense,Diesel Oil,3202,FUELMATE LTD,A0090265,17/10/2023,FIN0337400,310.66,N,,N,N
Pendle Borough Council,Finance,Transport Related Expense,Diesel Oil,3202,FUELMATE LTD,A0090265,31/10/2023,FIN0337402,316.78,N,,N,N
Pendle Borough Council,Finance,Transport Related Expense,Diesel Oil,3202,FUELMATE LTD,A0090265,10/10/2023,FIN0337399,228.92,N,,N,N
Pendle Borough Council,Finance,Transport Related Expense,Diesel Oil,3202,FUELMATE LTD,A0090265,31/10/2023,FIN0337402,264.05,N,,N,N
Pendle Borough Council,Finance,Transport Related Expense,Diesel Oil,3202,FUELMATE LTD,A0090265,17/10/2023,FIN0337400,343.43,N,,N,N
Pendle Borough Council,Finance,Transport Related Expense,Diesel Oil,3202,FUELMATE LTD,A0090265,24/10/2023,FIN0337401,350.08,N,,N,N
Pendle Borough Council,Finance,Transport Related Expense,Diesel Oil,3202,FUELMATE LTD,A0090265,03/10/2023,FIN0337398,396.34,N,,N,N
Pendle Borough Council,Finance,Transport Related Expense,Diesel Oil,3202,FUELMATE LTD,A0090265,10/10/2023,FIN0337399,170,N,,N,N
Pendle Borough Council,Finance,Transport Related Expense,Diesel Oil,3202,FUELMATE LTD,A0090265,03/10/2023,FIN0337398,198.86,N,,N,N
Pendle Borough Council,Finance,Transport Related Expense,Diesel Oil,3202,FUELMATE LTD,A0090265,24/10/2023,FIN0337401,239.16,N,,N,N
Pendle Borough Council,Finance,Transport Related Expense,Diesel Oil,3202,FUELMATE LTD,A0090265,17/10/2023,FIN0337400,248.09,N,,N,N
Pendle Borough Council,Finance,Transport Related Expense,Diesel Oil,3202,FUELMATE LTD,A0090265,31/10/2023,FIN0337402,296.92,N,,N,N
Pendle Borough Council,Finance,Transport Related Expense,Diesel Oil,3202,FUELMATE LTD,A0090265,03/10/2023,FIN0337398,74.48,N,,N,N
Pendle Borough Council,Finance,Transport Related Expense,Diesel Oil,3202,FUELMATE LTD,A0090265,17/10/2023,FIN0337400,132.63,N,,N,N
Pendle Borough Council,Finance,Transport Related Expense,Diesel Oil,3202,FUELMATE LTD,A0090265,24/10/2023,FIN0337401,151.31,N,,N,N
Pendle Borough Council,Finance,Transport Related Expense,Diesel Oil,3202,FUELMATE LTD,A0090265,31/10/2023,FIN0337402,185.77,N,,N,N
Pendle Borough Council,Finance,Transport Related Expense,Diesel Oil,3202,FUELMATE LTD,A0090265,10/10/2023,FIN0337399,202.56,N,,N,N
Pendle Borough Council,Finance,Transport Related Expense,Diesel Oil,3202,FUELMATE LTD,A0090265,24/10/2023,FIN0337401,259.48,N,,N,N
Pendle Borough Council,Finance,Transport Related Expense,Diesel Oil,3202,FUELMATE LTD,A0090265,17/10/2023,FIN0337400,267.02,N,,N,N
Pendle Borough Council,Finance,Transport Related Expense,Diesel Oil,3202,FUELMATE LTD,A0090265,03/10/2023,FIN0337398,333.8,N,,N,N
Pendle Borough Council,Finance,Transport Related Expense,Diesel Oil,3202,FUELMATE LTD,A0090265,31/10/2023,FIN0337402,343.86,N,,N,N
Pendle Borough Council,Finance,Transport Related Expense,Diesel Oil,3202,FUELMATE LTD,A0090265,31/10/2023,FIN0337402,142.56,N,,N,N
Pendle Borough Council,Finance,Transport Related Expense,Diesel Oil,3202,FUELMATE LTD,A0090265,03/10/2023,FIN0337398,200.97,N,,N,N
Pendle Borough Council,Finance,Transport Related Expense,Diesel Oil,3202,FUELMATE LTD,A0090265,10/10/2023,FIN0337399,265.63,N,,N,N
Pendle Borough Council,Finance,Transport Related Expense,Diesel Oil,3202,FUELMATE LTD,A0090265,24/10/2023,FIN0337401,311.8,N,,N,N
Pendle Borough Council,Finance,Transport Related Expense,Diesel Oil,3202,FUELMATE LTD,A0090265,17/10/2023,FIN0337400,337.18,N,,N,N
Pendle Borough Council,Finance,Transport Related Expense,Diesel Oil,3202,FUELMATE LTD,A0090265,24/10/2023,FIN0337401,108.66,N,,N,N
Pendle Borough Council,Finance,Transport Related Expense,Diesel Oil,3202,FUELMATE LTD,A0090265,03/10/2023,FIN0337398,282.01,N,,N,N
Pendle Borough Council,Finance,Transport Related Expense,Diesel Oil,3202,FUELMATE LTD,A0090265,10/10/2023,FIN0337399,287.01,N,,N,N
Pendle Borough Council,Finance,Transport Related Expense,Diesel Oil,3202,FUELMATE LTD,A0090265,31/10/2023,FIN0337402,317.97,N,,N,N
Pendle Borough Council,Finance,Transport Related Expense,Diesel Oil,3202,FUELMATE LTD,A0090265,17/10/2023,FIN0337400,397.65,N,,N,N
Pendle Borough Council,Finance,Transport Related Expense,Diesel Oil,3202,FUELMATE LTD,A0090265,03/10/2023,FIN0337398,177.74,N,,N,N
Pendle Borough Council,Finance,Transport Related Expense,Diesel Oil,3202,FUELMATE LTD,A0090265,31/10/2023,FIN0337402,182.26,N,,N,N
Pendle Borough Council,Finance,Transport Related Expense,Diesel Oil,3202,FUELMATE LTD,A0090265,17/10/2023,FIN0337400,216.78,N,,N,N
Pendle Borough Council,Finance,Transport Related Expense,Diesel Oil,3202,FUELMATE LTD,A0090265,10/10/2023,FIN0337399,228.21,N,,N,N
Pendle Borough Council,Finance,Transport Related Expense,Diesel Oil,3202,FUELMATE LTD,A0090265,24/10/2023,FIN0337401,264.57,N,,N,N
Pendle Borough Council,Finance,Transport Related Expense,Diesel Oil,3202,FUELMATE LTD,A0090265,24/10/2023,FIN0337401,82.59,N,,N,N
Pendle Borough Council,Finance,Transport Related Expense,Diesel Oil,3202,FUELMATE LTD,A0090265,03/10/2023,FIN0337398,269.95,N,,N,N
Pendle Borough Council,Finance,Transport Related Expense,Diesel Oil,3202,FUELMATE LTD,A0090265,10/10/2023,FIN0337399,317.45,N,,N,N
Pendle Borough Council,Finance,Transport Related Expense,Diesel Oil,3202,FUELMATE LTD,A0090265,10/10/2023,FIN0337399,223.72,N,,N,N
Pendle Borough Council,Finance,Transport Related Expense,Diesel Oil,3202,FUELMATE LTD,A0090265,31/10/2023,FIN0337402,344.01,N,,N,N
Pendle Borough Council,Finance,Transport Related Expense,Diesel Oil,3202,FUELMATE LTD,A0090265,24/10/2023,FIN0337401,368.95,N,,N,N
Pendle Borough Council,Finance,Transport Related Expense,Diesel Oil,3202,FUELMATE LTD,A0090265,03/10/2023,FIN0337398,402.08,N,,N,N
Pendle Borough Council,Finance,Transport Related Expense,Diesel Oil,3202,FUELMATE LTD,A0090265,17/10/2023,FIN0337400,411.33,N,,N,N
Pendle Borough Council,Finance,Transport Related Expense,Diesel Oil,3202,FUELMATE LTD,A0090265,31/10/2023,FIN0337402,133.48,N,,N,N
Pendle Borough Council,Finance,Transport Related Expense,Diesel Oil,3202,FUELMATE LTD,A0090265,24/10/2023,FIN0337401,148.16,N,,N,N
Pendle Borough Council,Finance,Transport Related Expense,Diesel Oil,3202,FUELMATE LTD,A0090265,03/10/2023,FIN0337398,219.62,N,,N,N
Pendle Borough Council,Finance,Transport Related Expense,Diesel Oil,3202,FUELMATE LTD,A0090265,10/10/2023,FIN0337399,237.42,N,,N,N
Pendle Borough Council,Finance,Transport Related Expense,Diesel Oil,3202,FUELMATE LTD,A0090265,17/10/2023,FIN0337400,253.47,N,,N,N
Pendle Borough Council,Finance,Transport Related Expense,Diesel Oil,3202,FUELMATE LTD,A0090265,10/10/2023,FIN0337399,42.69,N,,N,N
Pendle Borough Council,Finance,Transport Related Expense,Diesel Oil,3202,FUELMATE LTD,A0090265,03/10/2023,FIN0337398,57.11,N,,N,N
Pendle Borough Council,Finance,Transport Related Expense,Diesel Oil,3202,FUELMATE LTD,A0090265,31/10/2023,FIN0337402,165.18,N,,N,N
Pendle Borough Council,Finance,Transport Related Expense,Diesel Oil,3202,FUELMATE LTD,A0090265,24/10/2023,FIN0337401,194.22,N,,N,N
Pendle Borough Council,Finance,Transport Related Expense,Diesel Oil,3202,FUELMATE LTD,A0090265,17/10/2023,FIN0337400,228.58,N,,N,N
Pendle Borough Council,Finance,Transport Related Expense,Diesel Oil,3202,FUELMATE LTD,A0090265,03/10/2023,FIN0337398,61.96,N,,N,N
Pendle Borough Council,Finance,Transport Related Expense,Diesel Oil,3202,FUELMATE LTD,A0090265,31/10/2023,FIN0337402,109.35,N,,N,N
Pendle Borough Council,Finance,Transport Related Expense,Diesel Oil,3202,FUELMATE LTD,A0090265,24/10/2023,FIN0337401,183.11,N,,N,N
Pendle Borough Council,Finance,Transport Related Expense,Diesel Oil,3202,FUELMATE LTD,A0090265,17/10/2023,FIN0337400,195.91,N,,N,N
Pendle Borough Council,Finance,Transport Related Expense,Diesel Oil,3202,FUELMATE LTD,A0090265,10/10/2023,FIN0337399,108.98,N,,N,N
Pendle Borough Council,Finance,Transport Related Expense,Diesel Oil,3202,FUELMATE LTD,A0090265,31/10/2023,FIN0337402,185.79,N,,N,N
Pendle Borough Council,Finance,Transport Related Expense,Diesel Oil,3202,FUELMATE LTD,A0090265,24/10/2023,FIN0337401,220.12,N,,N,N
Pendle Borough Council,Finance,Transport Related Expense,Diesel Oil,3202,FUELMATE LTD,A0090265,17/10/2023,FIN0337400,266.61,N,,N,N
Pendle Borough Council,Finance,Transport Related Expense,Diesel Oil,3202,FUELMATE LTD,A0090265,10/10/2023,FIN0337399,196.3,N,,N,N
Pendle Borough Council,Finance,Transport Related Expense,Diesel Oil,3202,FUELMATE LTD,A0090265,03/10/2023,FIN0337398,241.99,N,,N,N
Pendle Borough Council,Finance,Transport Related Expense,Diesel Oil,3202,FUELMATE LTD,A0090265,24/10/2023,FIN0337401,247.18,N,,N,N
Pendle Borough Council,Finance,Transport Related Expense,Diesel Oil,3202,FUELMATE LTD,A0090265,31/10/2023,FIN0337402,268.86,N,,N,N
Pendle Borough Council,Finance,Transport Related Expense,Diesel Oil,3202,FUELMATE LTD,A0090265,24/10/2023,FIN0337401,49.58,N,,N,N
Pendle Borough Council,Finance,Transport Related Expense,Diesel Oil,3202,FUELMATE LTD,A0090265,17/10/2023,FIN0337400,51.76,N,,N,N
Pendle Borough Council,Finance,Transport Related Expense,Diesel Oil,3202,FUELMATE LTD,A0090265,10/10/2023,FIN0337399,52.47,N,,N,N
Pendle Borough Council,Finance,Transport Related Expense,Diesel Oil,3202,FUELMATE LTD,A0090265,31/10/2023,FIN0337402,66.78,N,,N,N
Pendle Borough Council,Finance,Transport Related Expense,Diesel Oil,3202,FUELMATE LTD,A0090265,03/10/2023,FIN0337398,100.72,N,,N,N
Pendle Borough Council,Finance,Transport Related Expense,Diesel Oil,3202,FUELMATE LTD,A0090265,17/10/2023,FIN0337400,47.92,N,,N,N
Pendle Borough Council,Finance,Transport Related Expense,Diesel Oil,3202,FUELMATE LTD,A0090265,03/10/2023,FIN0337398,91.21,N,,N,N
Pendle Borough Council,Finance,Transport Related Expense,Diesel Oil,3202,FUELMATE LTD,A0090265,31/10/2023,FIN0337402,102.53,N,,N,N
Pendle Borough Council,Finance,Transport Related Expense,Diesel Oil,3202,FUELMATE LTD,A0090265,10/10/2023,FIN0337399,66.7,N,,N,N
Pendle Borough Council,Finance,Transport Related Expense,Diesel Oil,3202,FUELMATE LTD,A0090265,24/10/2023,FIN0337401,73.97,N,,N,N
Pendle Borough Council,Finance,Transport Related Expense,Diesel Oil,3202,FUELMATE LTD,A0090265,10/10/2023,FIN0337399,84.24,N,,N,N
Pendle Borough Council,Finance,Transport Related Expense,Diesel Oil,3202,FUELMATE LTD,A0090265,03/10/2023,FIN0337398,66.92,N,,N,N
Pendle Borough Council,Finance,Transport Related Expense,Diesel Oil,3202,FUELMATE LTD,A0090265,24/10/2023,FIN0337401,66.98,N,,N,N
Pendle Borough Council,Finance,Transport Related Expense,Diesel Oil,3202,FUELMATE LTD,A0090265,10/10/2023,FIN0337399,67.03,N,,N,N
Pendle Borough Council,Finance,Transport Related Expense,Diesel Oil,3202,FUELMATE LTD,A0090265,31/10/2023,FIN0337402,69.93,N,,N,N
Pendle Borough Council,Finance,Transport Related Expense,Diesel Oil,3202,FUELMATE LTD,A0090265,17/10/2023,FIN0337400,118.84,N,,N,N
Pendle Borough Council,Finance,Transport Related Expense,Diesel Oil,3202,FUELMATE LTD,A0090265,03/10/2023,FIN0337398,65.02,N,,N,N
Pendle Borough Council,Finance,Transport Related Expense,Diesel Oil,3202,FUELMATE LTD,A0090265,24/10/2023,FIN0337401,70.02,N,,N,N
Pendle Borough Council,Finance,Transport Related Expense,Diesel Oil,3202,FUELMATE LTD,A0090265,17/10/2023,FIN0337400,118.86,N,,N,N
Pendle Borough Council,Finance,Transport Related Expense,Diesel Oil,3202,FUELMATE LTD,A0090265,31/10/2023,FIN0337402,125.26,N,,N,N
Pendle Borough Council,Finance,Transport Related Expense,Diesel Oil,3202,FUELMATE LTD,A0090265,10/10/2023,FIN0337399,178.36,N,,N,N
Pendle Borough Council,Finance,Transport Related Expense,Diesel Oil,3202,FUELMATE LTD,A0090265,03/10/2023,FIN0337398,43.43,N,,N,N
Pendle Borough Council,Finance,Transport Related Expense,Diesel Oil,3202,FUELMATE LTD,A0090265,17/10/2023,FIN0337400,59.14,N,,N,N
Pendle Borough Council,Finance,Transport Related Expense,Diesel Oil,3202,FUELMATE LTD,A0090265,31/10/2023,FIN0337402,63.3,N,,N,N
Pendle Borough Council,Finance,Transport Related Expense,Diesel Oil,3202,FUELMATE LTD,A0090265,10/10/2023,FIN0337399,65.61,N,,N,N
Pendle Borough Council,Finance,Transport Related Expense,Diesel Oil,3202,FUELMATE LTD,A0090265,24/10/2023,FIN0337401,67.07,N,,N,N
Pendle Borough Council,Finance,Transport Related Expense,Diesel Oil,3202,FUELMATE LTD,A0090265,03/10/2023,FIN0337398,48.45,N,,N,N
Pendle Borough Council,Finance,Transport Related Expense,Diesel Oil,3202,FUELMATE LTD,A0090265,24/10/2023,FIN0337401,53.78,N,,N,N
Pendle Borough Council,Finance,Transport Related Expense,Diesel Oil,3202,FUELMATE LTD,A0090265,31/10/2023,FIN0337402,56.07,N,,N,N
Pendle Borough Council,Finance,Transport Related Expense,Diesel Oil,3202,FUELMATE LTD,A0090265,17/10/2023,FIN0337400,59.51,N,,N,N
Pendle Borough Council,Finance,Transport Related Expense,Diesel Oil,3202,FUELMATE LTD,A0090265,10/10/2023,FIN0337399,62.81,N,,N,N
Pendle Borough Council,Finance,Transport Related Expense,Diesel Oil,3202,FUELMATE LTD,A0090265,31/10/2023,FIN0337402,69.87,N,,N,N
Pendle Borough Council,Finance,Transport Related Expense,Diesel Oil,3202,FUELMATE LTD,A0090265,10/10/2023,FIN0337399,71.18,N,,N,N
Pendle Borough Council,Finance,Transport Related Expense,Diesel Oil,3202,FUELMATE LTD,A0090265,17/10/2023,FIN0337400,72.18,N,,N,N
Pendle Borough Council,Finance,Transport Related Expense,Diesel Oil,3202,FUELMATE LTD,A0090265,03/10/2023,FIN0337398,118.66,N,,N,N
Pendle Borough Council,Finance,Transport Related Expense,Diesel Oil,3202,FUELMATE LTD,A0090265,24/10/2023,FIN0337401,144.32,N,,N,N
Pendle Borough Council,Finance,Transport Related Expense,Diesel Oil,3202,FUELMATE LTD,A0090265,17/10/2023,FIN0337400,51.36,N,,N,N
Pendle Borough Council,Finance,Transport Related Expense,Diesel Oil,3202,FUELMATE LTD,A0090265,31/10/2023,FIN0337402,66.72,N,,N,N
Pendle Borough Council,Finance,Transport Related Expense,Diesel Oil,3202,FUELMATE LTD,A0090265,03/10/2023,FIN0337398,66.91,N,,N,N
Pendle Borough Council,Finance,Transport Related Expense,Diesel Oil,3202,FUELMATE LTD,A0090265,24/10/2023,FIN0337401,68.45,N,,N,N
Pendle Borough Council,Finance,Transport Related Expense,Diesel Oil,3202,FUELMATE LTD,A0090265,10/10/2023,FIN0337399,75.1,N,,N,N
Pendle Borough Council,Finance,Transport Related Expense,Diesel Oil,3202,FUELMATE LTD,A0090265,10/10/2023,FIN0337399,20.12,N,,N,N
Pendle Borough Council,Finance,Transport Related Expense,Diesel Oil,3202,FUELMATE LTD,A0090265,24/10/2023,FIN0337401,50.43,N,,N,N
Pendle Borough Council,Finance,Transport Related Expense,Diesel Oil,3202,FUELMATE LTD,A0090265,17/10/2023,FIN0337400,39.44,N,,N,N
Pendle Borough Council,Finance,Transport Related Expense,Diesel Oil,3202,FUELMATE LTD,A0090265,10/10/2023,FIN0337399,43.5,N,,N,N
Pendle Borough Council,Finance,Transport Related Expense,Diesel Oil,3202,FUELMATE LTD,A0090265,17/10/2023,FIN0337400,42.42,N,,N,N
Pendle Borough Council,Finance,Transport Related Expense,Diesel Oil,3202,FUELMATE LTD,A0090265,03/10/2023,FIN0337398,43.29,N,,N,N
Pendle Borough Council,Finance,Transport Related Expense,Diesel Oil,3202,FUELMATE LTD,A0090265,03/10/2023,FIN0337398,29.48,N,,N,N
Pendle Borough Council,Finance,Transport Related Expense,Diesel Oil,3202,FUELMATE LTD,A0090265,17/10/2023,FIN0337400,33.35,N,,N,N
Pendle Borough Council,Finance,Transport Related Expense,Diesel Oil,3202,FUELMATE LTD,A0090265,31/10/2023,FIN0337402,33.57,N,,N,N
Pendle Borough Council,Finance,Transport Related Expense,Diesel Oil,3202,FUELMATE LTD,A0090265,17/10/2023,FIN0337400,47.18,N,,N,N
Pendle Borough Council,Finance,Transport Related Expense,Diesel Oil,3202,FUELMATE LTD,A0090265,03/10/2023,FIN0337398,48.61,N,,N,N
Pendle Borough Council,Finance,Transport Related Expense,Diesel Oil,3202,FUELMATE LTD,A0090265,03/10/2023,FIN0337398,16.04,N,,N,N
Pendle Borough Council,Finance,Transport Related Expense,Diesel Oil,3202,FUELMATE LTD,A0090265,10/10/2023,FIN0337399,20.17,N,,N,N
Pendle Borough Council,Finance,Transport Related Expense,Diesel Oil,3202,FUELMATE LTD,A0090265,24/10/2023,FIN0337401,46.14,N,,N,N
Pendle Borough Council,Finance,Transport Related Expense,Diesel Oil,3202,FUELMATE LTD,A0090265,31/10/2023,FIN0337402,78.39,N,,N,N
Pendle Borough Council,Finance,Transport Related Expense,Diesel Oil,3202,FUELMATE LTD,A0090265,17/10/2023,FIN0337400,85.7,N,,N,N
Pendle Borough Council,Finance,Transport Related Expense,Diesel Oil,3202,FUELMATE LTD,A0090265,03/10/2023,FIN0337398,91.53,N,,N,N
Pendle Borough Council,Finance,Transport Related Expense,Diesel Oil,3202,FUELMATE LTD,A0090265,17/10/2023,FIN0337400,62.52,N,,N,N
Pendle Borough Council,Finance,Transport Related Expense,Diesel Oil,3202,FUELMATE LTD,A0090265,10/10/2023,FIN0337399,67.67,N,,N,N
Pendle Borough Council,Finance,Transport Related Expense,Diesel Oil,3202,FUELMATE LTD,A0090265,10/10/2023,FIN0337399,68.71,N,,N,N
Pendle Borough Council,Finance,Transport Related Expense,Diesel Oil,3202,FUELMATE LTD,A0090265,31/10/2023,FIN0337402,54.33,N,,N,N
Pendle Borough Council,Finance,Transport Related Expense,Diesel Oil,3202,FUELMATE LTD,A0090265,03/10/2023,FIN0337398,47.21,N,,N,N
Pendle Borough Council,Finance,Transport Related Expense,Diesel Oil,3202,FUELMATE LTD,A0090265,24/10/2023,FIN0337401,48.85,N,,N,N
Pendle Borough Council,Finance,Transport Related Expense,Diesel Oil,3202,FUELMATE LTD,A0090265,03/10/2023,FIN0337398,38.7,N,,N,N
Pendle Borough Council,Finance,Transport Related Expense,Diesel Oil,3202,FUELMATE LTD,A0090265,17/10/2023,FIN0337400,53.44,N,,N,N
Pendle Borough Council,Finance,Transport Related Expense,Diesel Oil,3202,FUELMATE LTD,A0090265,24/10/2023,FIN0337401,120.8,N,,N,N
Pendle Borough Council,Finance,Transport Related Expense,Diesel Oil,3202,FUELMATE LTD,A0090265,10/10/2023,FIN0337399,130.49,N,,N,N
Pendle Borough Council,Operational Services,Premises Related Expense,Grounds : R & M : Day to Day : Routine,2101,TREETOPS DE-VEGETATION SERVICES LIMITED,A0090701,12/10/2023,OPS0336971,500,N,,N,N
Pendle Borough Council,Revenues Services,Supplies and Services,DSS Collection Fee,4414,PS&P LTD,A0090720,19/10/2023,TRE0337107,11,N,,N,N
Pendle Borough Council,Revenues Services,Supplies and Services,DSS Collection Fee,4414,PS&P LTD,A0090720,19/10/2023,TRE0337106,15,N,,N,N
Pendle Borough Council,Revenues Services,Supplies and Services,DSS Collection Fee,4414,PS&P LTD,A0090720,19/10/2023,TRE0337105,26.95,N,,N,N
Pendle Borough Council,Property Services,Capital Costs,Capital: Construction: Conversion/Refu,CD57,B & E BOYS LIMITED,A0090790,19/10/2023,EST0337212,174635.78,N,,N,N
Pendle Borough Council,Human Resources,Indirect Employee Expenses,Emp : Medical Expenses,1236,HEALTH ASSURED LIMITED,A0091143,05/10/2023,PER0336799,462,N,,N,N
Pendle Borough Council,Operational Services,Transport Related Expense,Tprt : Repairs : General,3105,QUARTIX LIMITED,A0091353,19/10/2023,OPS0337134,97,N,,N,N
Pendle Borough Council,Operational Services,Supplies and Services,Miscellaneous : Other,4707,PERMISERV LIMITED,A0091396,12/10/2023,OPS0337014,172.96,N,,N,N
Pendle Borough Council,Operational Services,Supplies and Services,Miscellaneous : Other,4707,PERMISERV LIMITED,A0091396,12/10/2023,OPS0337015,284.51,N,,N,N
Pendle Borough Council,Housing & Environmental Health,Supplies and Services,Other Expenses,4705,RENT UK PROPERTY LIMITED,A0091433,25/10/2023,HEH0337223,995.69,N,,N,N
Pendle Borough Council,Housing & Environmental Health,Premises Related Expense,Bldgs : R & M : Abnormal,2002,QUALITY CONSULTANTS,A0091576,05/10/2023,HEH0336795,110,N,,N,N
Pendle Borough Council,Operational Services,Agency Staff,Emp : Basic Wages,1001,NW RECRUITMENT SERVICES LIMITED,A0091588,25/10/2023,OPS0337214,5219.12,N,,N,N
Pendle Borough Council,Operational Services,Agency Staff,Emp : Basic Wages,1001,NW RECRUITMENT SERVICES LIMITED,A0091588,19/10/2023,OPS0337156,5352.68,N,,N,N
Pendle Borough Council,Operational Services,Agency Staff,Emp : Basic Wages,1001,NW RECRUITMENT SERVICES LIMITED,A0091588,05/10/2023,OPS0336839,6052.69,N,,N,N
Pendle Borough Council,Operational Services,Agency Staff,Emp : Basic Wages,1001,NW RECRUITMENT SERVICES LIMITED,A0091588,12/10/2023,OPS0336966,6243.98,N,,N,N
Pendle Borough Council,Legal & Democratic Services,Agency Staff,Emp : Agency Wages,1004,NW RECRUITMENT SERVICES LIMITED,A0091588,05/10/2023,LAD0336807,322.07,N,,N,N
Pendle Borough Council,Legal & Democratic Services,Agency Staff,Emp : Agency Wages,1004,NW RECRUITMENT SERVICES LIMITED,A0091588,19/10/2023,LAD0337136,359.52,N,,N,N
Pendle Borough Council,Operational Services,Agency Staff,Emp : Agency Wages,1004,NW RECRUITMENT SERVICES LIMITED,A0091588,05/10/2023,OPS0336833,120.37,N,,N,N
Pendle Borough Council,Operational Services,Agency Staff,Emp : Agency Wages,1004,NW RECRUITMENT SERVICES LIMITED,A0091588,12/10/2023,OPS0336967,153.19,N,,N,N
Pendle Borough Council,Operational Services,Agency Staff,Emp : Agency Wages,1004,NW RECRUITMENT SERVICES LIMITED,A0091588,19/10/2023,OPS0337140,258.97,N,,N,N
Pendle Borough Council,Operational Services,Agency Staff,Emp : Agency Wages,1004,NW RECRUITMENT SERVICES LIMITED,A0091588,25/10/2023,OPS0337218,262.62,N,,N,N
Pendle Borough Council,Operational Services,Agency Staff,Emp : Agency Wages,1004,NW RECRUITMENT SERVICES LIMITED,A0091588,25/10/2023,OPS0337248,2608.88,N,,N,N
Pendle Borough Council,Operational Services,Agency Staff,Emp : Agency Wages,1004,NW RECRUITMENT SERVICES LIMITED,A0091588,12/10/2023,OPS0336987,2850.12,N,,N,N
Pendle Borough Council,Operational Services,Agency Staff,Emp : Agency Wages,1004,NW RECRUITMENT SERVICES LIMITED,A0091588,12/10/2023,OPS0336989,2855.9,N,,N,N
Pendle Borough Council,Operational Services,Agency Staff,Emp : Agency Wages,1004,NW RECRUITMENT SERVICES LIMITED,A0091588,19/10/2023,OPS0337126,3117.44,N,,N,N
Pendle Borough Council,Operational Services,Agency Staff,Emp : Agency Wages,1004,NW RECRUITMENT SERVICES LIMITED,A0091588,12/10/2023,OPS0336988,3432.7,N,,N,N
Pendle Borough Council,Operational Services,Agency Staff,Emp : Agency Wages,1004,NW RECRUITMENT SERVICES LIMITED,A0091588,12/10/2023,OPS0336986,3760.68,N,,N,N
Pendle Borough Council,Operational Services,Agency Staff,Emp : Agency Wages,1004,NW RECRUITMENT SERVICES LIMITED,A0091588,12/10/2023,OPS0336989,1309.81,N,,N,N
Pendle Borough Council,Operational Services,Agency Staff,Emp : Agency Wages,1004,NW RECRUITMENT SERVICES LIMITED,A0091588,19/10/2023,OPS0337126,1494.21,N,,N,N
Pendle Borough Council,Operational Services,Agency Staff,Emp : Agency Wages,1004,NW RECRUITMENT SERVICES LIMITED,A0091588,25/10/2023,OPS0337248,1642.43,N,,N,N
Pendle Borough Council,Operational Services,Agency Staff,Emp : Agency Wages,1004,NW RECRUITMENT SERVICES LIMITED,A0091588,12/10/2023,OPS0336988,1932.35,N,,N,N
Pendle Borough Council,Operational Services,Agency Staff,Emp : Agency Wages,1004,NW RECRUITMENT SERVICES LIMITED,A0091588,12/10/2023,OPS0336986,2641.23,N,,N,N
Pendle Borough Council,Operational Services,Agency Staff,Emp : Agency Wages,1004,NW RECRUITMENT SERVICES LIMITED,A0091588,12/10/2023,OPS0336987,2656.75,N,,N,N
Pendle Borough Council,Operational Services,Agency Staff,Emp : Agency Wages,1004,NW RECRUITMENT SERVICES LIMITED,A0091588,12/10/2023,OPS0336987,1138.48,N,,N,N
Pendle Borough Council,Operational Services,Agency Staff,Emp : Agency Wages,1004,NW RECRUITMENT SERVICES LIMITED,A0091588,12/10/2023,OPS0336988,1141.84,N,,N,N
Pendle Borough Council,Operational Services,Agency Staff,Emp : Agency Wages,1004,NW RECRUITMENT SERVICES LIMITED,A0091588,12/10/2023,OPS0336989,1480.82,N,,N,N
Pendle Borough Council,Operational Services,Agency Staff,Emp : Agency Wages,1004,NW RECRUITMENT SERVICES LIMITED,A0091588,12/10/2023,OPS0336986,1714.38,N,,N,N
Pendle Borough Council,Operational Services,Agency Staff,Emp : Agency Wages,1004,NW RECRUITMENT SERVICES LIMITED,A0091588,25/10/2023,OPS0337248,1942.9,N,,N,N
Pendle Borough Council,Operational Services,Agency Staff,Emp : Agency Wages,1004,NW RECRUITMENT SERVICES LIMITED,A0091588,19/10/2023,OPS0337126,2117.31,N,,N,N
Pendle Borough Council,Finance,Supplies and Services,Printing & Stationery,4301,LA DIRECTORIES LIMITED,A0091596,12/10/2023,FIN0337061,995,N,,N,N
Pendle Borough Council,Policy & Commissioning,Supplies and Services,Publicity & advertisement,4704,CMS LIVE,A0091625,12/10/2023,POL0336897,15,N,,N,N
Pendle Borough Council,Policy & Commissioning,Supplies and Services,Publicity & advertisement,4704,CMS LIVE,A0091625,12/10/2023,POL0336898,300,N,,N,N
Pendle Borough Council,Economic Growth,Premises Related Expense,Grounds : R & M : Day to Day : Routine,2101,A&G LANDSCAPES & GROUNDWORKS LIMITED,A0091675,12/10/2023,ECO0337032,335.56,N,,N,N
Pendle Borough Council,Economic Growth,Premises Related Expense,Grounds : R & M : Day to Day : Routine,2101,A&G LANDSCAPES & GROUNDWORKS LIMITED,A0091675,12/10/2023,ECO0337022,25,N,,N,N
Pendle Borough Council,Economic Growth,Premises Related Expense,Grounds : R & M : Day to Day : Routine,2101,A&G LANDSCAPES & GROUNDWORKS LIMITED,A0091675,12/10/2023,ECO0337023,50,N,,N,N
Pendle Borough Council,Economic Growth,Premises Related Expense,Grounds : R & M : Day to Day : Routine,2101,A&G LANDSCAPES & GROUNDWORKS LIMITED,A0091675,25/10/2023,ECO0337205,65,N,,N,N
Pendle Borough Council,Economic Growth,Premises Related Expense,Grounds : R & M : Day to Day : Routine,2101,A&G LANDSCAPES & GROUNDWORKS LIMITED,A0091675,25/10/2023,ECO0337205,125,N,,N,N
Pendle Borough Council,Economic Growth,Premises Related Expense,Grounds : R & M : Day to Day : Routine,2101,A&G LANDSCAPES & GROUNDWORKS LIMITED,A0091675,12/10/2023,ECO0337024,50,N,,N,N
Pendle Borough Council,Economic Growth,Supplies and Services,Other Expenses,4705,A&G LANDSCAPES & GROUNDWORKS LIMITED,A0091675,12/10/2023,ECO0337032,750,N,,N,N
Pendle Borough Council,Economic Growth,Capital Costs,Capital : Payments,CD14,A&G LANDSCAPES & GROUNDWORKS LIMITED,A0091675,12/10/2023,ECO0337032,500,N,,N,N
Pendle Borough Council,Economic Growth,Capital Costs,Capital : Payments,CD14,A&G LANDSCAPES & GROUNDWORKS LIMITED,A0091675,12/10/2023,ECO0337032,3199,N,,N,N
Pendle Borough Council,Economic Growth,,Paid in the Year,PD03,A&G LANDSCAPES & GROUNDWORKS LIMITED,A0091675,25/10/2023,ECO0336880,4000,N,,N,N
Pendle Borough Council,Economic Growth,,Paid in the Year,PD03,A&G LANDSCAPES & GROUNDWORKS LIMITED,A0091675,25/10/2023,ECO0336880,17407.19,N,,N,N
Pendle Borough Council,Housing & Environmental Health,Capital Costs,Ren Grant : 1996 Act,CH22,BRYAN LEE BUILDING CONTRACTORS LIMITED,A0091749,19/10/2023,HEH0337165,23420.07,N,,N,N
Pendle Borough Council,Property Services,Capital Costs,Capital : Payments,CD14,CRAFTSMAN RESTORATION LTD,A0091780,25/10/2023,EST0337267,1200,N,,N,N
Pendle Borough Council,Housing & Environmental Health,Agency Staff,Emp : Agency Wages,1004,THE OYSTER PARTNERSHIP LIMITED,A0091781,12/10/2023,HEH0336959,1480.06,N,,N,N
Pendle Borough Council,Housing & Environmental Health,Agency Staff,Emp : Agency Wages,1004,THE OYSTER PARTNERSHIP LIMITED,A0091781,05/10/2023,HEH0336791,1512.31,N,,N,N
Pendle Borough Council,Housing & Environmental Health,Agency Staff,Emp : Agency Wages,1004,THE OYSTER PARTNERSHIP LIMITED,A0091781,19/10/2023,HEH0337120,1566.06,N,,N,N
Pendle Borough Council,Housing & Environmental Health,Agency Staff,Emp : Agency Wages,1004,THE OYSTER PARTNERSHIP LIMITED,A0091781,25/10/2023,HEH0337240,1599.84,N,,N,N
Pendle Borough Council,Housing & Environmental Health,Supplies and Services,Other Expenses,4705,ROUGHLEE BOOTH PARISH COUNCIL,A0091815,19/10/2023,HEH0337111,962,N,,N,N
Pendle Borough Council,Operational Services,Supplies and Services,Other Expenses,4705,AFS SUPPLIES,A0091856,05/10/2023,OPS0336813,173,N,,N,N
Pendle Borough Council,Operational Services,Premises Related Expense,Grounds : R & M : Day to Day : Routine,2101,J RAWSON & SONS,A0091873,19/10/2023,OPS0337155,48000,N,,N,N
Pendle Borough Council,Operational Services,Premises Related Expense,Bldgs : R & M : Day To Day,2001,THE BLAST SHOP - S CRITCHLEY & SON,A0091875,12/10/2023,OPS0336976,116.8,N,,N,N
Pendle Borough Council,Property Services,Premises Related Expense,Water & Sewerage,2501,BUSINESS STREAM,A0091916,05/10/2023,EST0336857,170.03,N,,N,N
Pendle Borough Council,Operational Services,,Stock : Purchases,PJ01,SMI GROUP UK,A0091999,19/10/2023,OPS4006756,-0.34,N,,N,N
Pendle Borough Council,Operational Services,,Stock : Purchases,PJ01,SMI GROUP UK,A0091999,19/10/2023,OPS0337130,99.15,N,,N,N
Pendle Borough Council,Legal & Democratic Services,Supplies and Services,Hospitality,4611,B&J TRAVEL LTD,A0092336,05/10/2023,LAD0336808,325,N,,N,N
Pendle Borough Council,Human Resources,Indirect Employee Expenses,Emp : Medical Expenses,1236,SHARP PHYSIOTHERAPY LIMITED,A0092384,19/10/2023,PER0337102,160,N,,N,N
Pendle Borough Council,Human Resources,Indirect Employee Expenses,Emp : Medical Expenses,1236,SHARP PHYSIOTHERAPY LIMITED,A0092384,05/10/2023,PER0336800,170,N,,N,N
Pendle Borough Council,Housing & Environmental Health,Supplies and Services,Other Expenses,4705,BARROWFORD SAFE AND LOCK SERVICES LTD,A0092646,19/10/2023,HEH0337152,75,N,,N,N
Pendle Borough Council,Operational Services,Premises Related Expense,Grounds : R & M : Gds Maint ,2103,IDVERDE,A0093945,12/10/2023,OPS0336969,9865.22,N,,N,N
Pendle Borough Council,Operational Services,Premises Related Expense,Grounds : R & M : Gds Maint ,2103,IDVERDE,A0093945,12/10/2023,OPS0336983,11345.81,N,,N,N
Pendle Borough Council,Economic Growth,Supplies and Services,Grant Funding,4737,BUILDING BRIDGES PENDLE,A0094107,25/10/2023,ECO0337292,3008.39,N,,N,N
Pendle Borough Council,Revenues Services,Supplies and Services,DSS Collection Fee,4414,MARSTON (HOLDINGS) LIMITED,A0094273,05/10/2023,TRE0336790,18,N,,N,N
Pendle Borough Council,Revenues Services,Supplies and Services,DSS Collection Fee,4414,MARSTON (HOLDINGS) LIMITED,A0094273,05/10/2023,TRE0336877,31.59,N,,N,N
Pendle Borough Council,Revenues Services,Supplies and Services,DSS Collection Fee,4414,MARSTON (HOLDINGS) LIMITED,A0094273,05/10/2023,TRE0336789,32.4,N,,N,N
Pendle Borough Council,Economic Growth,Premises Related Expense,Grounds : R & M : Day to Day : Routine,2101,LOOP PUBLISHING LTD,A0095691,12/10/2023,ECO0337021,275,N,,N,N
Pendle Borough Council,Operational Services,Premises Related Expense,Grounds : R & M : Day to Day : Routine,2101,M W ENVIRONMENTAL,A0095862,05/10/2023,OPS0336786,290,N,,N,N
Pendle Borough Council,Operational Services,Premises Related Expense,Grounds : R & M : Day to Day : Routine,2101,M W ENVIRONMENTAL,A0095862,19/10/2023,OPS0337154,1321.42,N,,N,N
Pendle Borough Council,Operational Services,Premises Related Expense,Grounds : R & M : Day to Day : Routine,2101,M W ENVIRONMENTAL,A0095862,05/10/2023,OPS0336829,117.5,N,,N,N
Pendle Borough Council,Policy & Commissioning,Supplies and Services,Children`s holiday activities,4716,FUNDA,A0096411,06/10/2023,POL0336741,23840,N,,N,N
Pendle Borough Council,Policy & Commissioning,Supplies and Services,Children`s holiday activities,4716,HARRINGTONS LEARNING CENTRE,A0096412,25/10/2023,POL0337260,10692,N,,N,N
Pendle Borough Council,Housing & Environmental Health,Transfer Payments,Accommodation ,6103,REGENT GUEST HOUSE,A0096417,05/10/2023,HEH0336788,170,N,,N,N
Pendle Borough Council,Housing & Environmental Health,Transfer Payments,Accommodation ,6103,REGENT GUEST HOUSE,A0096417,19/10/2023,HEH0337116,1190,N,,N,N
Pendle Borough Council,Housing & Environmental Health,Transfer Payments,Accommodation ,6103,REGENT GUEST HOUSE,A0096417,19/10/2023,HEH0337118,2240,N,,N,N
Pendle Borough Council,Housing & Environmental Health,Transfer Payments,Accommodation ,6103,REGENT GUEST HOUSE,A0096417,19/10/2023,HEH0337117,2450,N,,N,N
Pendle Borough Council,Property Services,Premises Related Expense,Gas,2202,E.ON NEXT ENERGY LIMITED,A0096428,19/10/2023,EST0337186,26.41,N,,N,N
Pendle Borough Council,Property Services,Premises Related Expense,Electricity,2203,E.ON NEXT ENERGY LIMITED,A0096428,19/10/2023,EST0337174,30,N,,N,N
Pendle Borough Council,Property Services,Premises Related Expense,Electricity,2203,E.ON NEXT ENERGY LIMITED,A0096428,19/10/2023,EST0336764,31,N,,N,N
Pendle Borough Council,Property Services,Premises Related Expense,Electricity,2203,E.ON NEXT ENERGY LIMITED,A0096428,25/10/2023,EST0337278,30.11,N,,N,N
Pendle Borough Council,Property Services,Premises Related Expense,Electricity,2203,E.ON NEXT ENERGY LIMITED,A0096428,25/10/2023,EST0337277,39.37,N,,N,N
Pendle Borough Council,Property Services,Premises Related Expense,Electricity,2203,E.ON NEXT ENERGY LIMITED,A0096428,25/10/2023,EST0337264,46.17,N,,N,N
Pendle Borough Council,Property Services,Premises Related Expense,Electricity,2203,E.ON NEXT ENERGY LIMITED,A0096428,19/10/2023,EST0336482,145.55,N,,N,N
Pendle Borough Council,Property Services,Premises Related Expense,Electricity,2203,E.ON NEXT ENERGY LIMITED,A0096428,19/10/2023,EST4006741,-1425.49,N,,N,N
Pendle Borough Council,Property Services,Premises Related Expense,Electricity,2203,E.ON NEXT ENERGY LIMITED,A0096428,19/10/2023,EST4006759,-350.66,N,,N,N
Pendle Borough Council,Property Services,Premises Related Expense,Electricity,2203,E.ON NEXT ENERGY LIMITED,A0096428,19/10/2023,EST0336209,2.38,N,,N,N
Pendle Borough Council,Property Services,Premises Related Expense,Electricity,2203,E.ON NEXT ENERGY LIMITED,A0096428,19/10/2023,EST0336507,4.34,N,,N,N
Pendle Borough Council,Property Services,Premises Related Expense,Electricity,2203,E.ON NEXT ENERGY LIMITED,A0096428,19/10/2023,EST0336210,4.48,N,,N,N
Pendle Borough Council,Property Services,Premises Related Expense,Electricity,2203,E.ON NEXT ENERGY LIMITED,A0096428,19/10/2023,EST0336481,17.24,N,,N,N
Pendle Borough Council,Property Services,Premises Related Expense,Electricity,2203,E.ON NEXT ENERGY LIMITED,A0096428,19/10/2023,EST0337173,26.7,N,,N,N
Pendle Borough Council,Property Services,Premises Related Expense,Electricity,2203,E.ON NEXT ENERGY LIMITED,A0096428,25/10/2023,EST0337265,30,N,,N,N
Pendle Borough Council,Property Services,Premises Related Expense,Electricity,2203,E.ON NEXT ENERGY LIMITED,A0096428,19/10/2023,EST0336480,31,N,,N,N
Pendle Borough Council,Property Services,Premises Related Expense,Electricity,2203,E.ON NEXT ENERGY LIMITED,A0096428,19/10/2023,EST0336506,31,N,,N,N
Pendle Borough Council,Property Services,Premises Related Expense,Electricity,2203,E.ON NEXT ENERGY LIMITED,A0096428,19/10/2023,EST0337171,31,N,,N,N
Pendle Borough Council,Property Services,Premises Related Expense,Electricity,2203,E.ON NEXT ENERGY LIMITED,A0096428,19/10/2023,EST0337172,31,N,,N,N
Pendle Borough Council,Property Services,Premises Related Expense,Electricity,2203,E.ON NEXT ENERGY LIMITED,A0096428,25/10/2023,EST0337266,33.26,N,,N,N
Pendle Borough Council,Property Services,Premises Related Expense,Electricity,2203,E.ON NEXT ENERGY LIMITED,A0096428,19/10/2023,EST0336212,33.33,N,,N,N
Pendle Borough Council,Property Services,Premises Related Expense,Electricity,2203,E.ON NEXT ENERGY LIMITED,A0096428,19/10/2023,EST0336213,36.36,N,,N,N
Pendle Borough Council,Property Services,Premises Related Expense,Electricity,2203,E.ON NEXT ENERGY LIMITED,A0096428,19/10/2023,EST0336214,43.84,N,,N,N
Pendle Borough Council,Property Services,Premises Related Expense,Electricity,2203,E.ON NEXT ENERGY LIMITED,A0096428,19/10/2023,EST0336215,44.03,N,,N,N
Pendle Borough Council,Property Services,Premises Related Expense,Electricity,2203,E.ON NEXT ENERGY LIMITED,A0096428,19/10/2023,EST0337166,44.88,N,,N,N
Pendle Borough Council,Property Services,Premises Related Expense,Electricity,2203,E.ON NEXT ENERGY LIMITED,A0096428,19/10/2023,EST0336211,72.19,N,,N,N
Pendle Borough Council,Property Services,Premises Related Expense,Electricity,2203,E.ON NEXT ENERGY LIMITED,A0096428,19/10/2023,EST0337167,350.66,N,,N,N
Pendle Borough Council,Property Services,Premises Related Expense,Electricity,2203,E.ON NEXT ENERGY LIMITED,A0096428,19/10/2023,EST0336217,458.37,N,,N,N
Pendle Borough Council,Property Services,Premises Related Expense,Electricity,2203,E.ON NEXT ENERGY LIMITED,A0096428,19/10/2023,EST0336216,516.44,N,,N,N
Pendle Borough Council,Operational Services,Transport Related Expense,Tprt : Repairs : General,3105,BTE PLANT SALES LTD,A0096481,05/10/2023,OPS0336842,4.56,N,,N,N
Pendle Borough Council,Operational Services,Transport Related Expense,Tprt : Repairs : General,3105,D&J MACHINERY,A0096482,05/10/2023,OPS0336827,281.5,N,,N,N
Pendle Borough Council,Housing & Environmental Health,Transfer Payments,Accommodation ,6103,CURRY ON THE STREET,A0096527,25/10/2023,HEH0337285,88,N,,N,N
Pendle Borough Council,Directorate,Supplies and Services,Seminars etc All Costs,4601,JJG CONSULTANCY & EXECUTIVE COACHING SERVICES LTD,A0096573,05/10/2023,DIR0336876,230,N,,N,N
Pendle Borough Council,Housing & Environmental Health,Supplies and Services,Other Expenses,4705,REDACT - PERSONAL DATA,A0096576,05/10/2023,HEH0336878,400,N,,N,N
Pendle Borough Council,Operational Services,Supplies and Services,Other Expenses,4705,IC2 DISTRIBUTION LIMITED,A0096611,05/10/2023,OPS0336896,180,N,,N,N
Pendle Borough Council,Housing & Environmental Health,Supplies and Services,Other Expenses,4705,ST ANNE`S CHURCH,A0096768,25/10/2023,HEH0337256,1500,N,,N,N
Pendle Borough Council,Finance,Supplies and Services,Grant Funding,4737,REDACT - PERSONAL DATA,A0096806,06/10/2023,FIN0336935,500,N,,N,N
Pendle Borough Council,Finance,Supplies and Services,Grant Funding,4737,REDACT - PERSONAL DATA,A0096808,06/10/2023,FIN0336937,500,N,,N,N
Pendle Borough Council,Finance,Supplies and Services,Grant Funding,4737,REDACT - PERSONAL DATA,A0096819,06/10/2023,FIN0336938,500,N,,N,N
Pendle Borough Council,Finance,Supplies and Services,Grant Funding,4737,REDACT - PERSONAL DATA,A0096823,06/10/2023,FIN0336936,500,N,,N,N
Pendle Borough Council,Operational Services,Indirect Employee Expenses,Training,1211,AEBI SCHMIDT UK LTD,A0096847,25/10/2023,OPS0337246,482,N,,N,N
Pendle Borough Council,Finance,Supplies and Services,Grant Funding,4737,REDACT - PERSONAL DATA,A0096866,06/10/2023,FIN0336939,500,N,,N,N
Pendle Borough Council,Finance,Supplies and Services,Grant Funding,4737,REDACT - PERSONAL DATA,A0096872,06/10/2023,FIN0336940,500,N,,N,N
Pendle Borough Council,Finance,Supplies and Services,Grant Funding,4737,REDACT - PERSONAL DATA,A0096893,06/10/2023,FIN0336941,500,N,,N,N
Pendle Borough Council,Operational Services,Premises Related Expense,Grounds : R & M : Day to Day : Routine,2101,WAYNE COLE T/A S & W PREMIUM LANDSCAPING,A0096903,05/10/2023,OPS0336825,380,N,,N,N
Pendle Borough Council,Operational Services,Premises Related Expense,Grounds : R & M : Day to Day : Routine,2101,WAYNE COLE T/A S & W PREMIUM LANDSCAPING,A0096903,05/10/2023,OPS0336824,380,N,,N,N
Pendle Borough Council,Finance,Supplies and Services,Grant Funding,4737,REDACT - PERSONAL DATA,A0096912,06/10/2023,FIN0336942,500,N,,N,N
Pendle Borough Council,Finance,Supplies and Services,Grant Funding,4737,REDACT - PERSONAL DATA,A0096916,06/10/2023,FIN0336943,500,N,,N,N
Pendle Borough Council,Property Services,Capital Costs,Capital : Payments,CD14,BUILDING TECHNOLOGY SYSTEMS LTD,A0096928,05/10/2023,EST0336863,31787,N,,N,N
Pendle Borough Council,Property Services,Capital Costs,Capital : Payments,CD14,BUILDING TECHNOLOGY SYSTEMS LTD,A0096928,05/10/2023,EST0336864,41613,N,,N,N
Pendle Borough Council,Operational Services,Capital Costs,Capital : Payments,CD14,THE CDS GROUP,A0096940,19/10/2023,OPS0337129,37.5,N,,N,N
Pendle Borough Council,Operational Services,Capital Costs,Capital : Payments,CD14,THE CDS GROUP,A0096940,19/10/2023,OPS0337128,150,N,,N,N
Pendle Borough Council,Operational Services,Capital Costs,Capital : Payments,CD14,THE CDS GROUP,A0096940,19/10/2023,OPS0337129,150,N,,N,N
Pendle Borough Council,Operational Services,Capital Costs,Capital : Payments,CD14,THE CDS GROUP,A0096940,19/10/2023,OPS0337128,190,N,,N,N
Pendle Borough Council,Operational Services,Capital Costs,Capital : Payments,CD14,THE CDS GROUP,A0096940,19/10/2023,OPS0337129,190,N,,N,N
Pendle Borough Council,Operational Services,Capital Costs,Capital : Payments,CD14,THE CDS GROUP,A0096940,19/10/2023,OPS0337128,200,N,,N,N
Pendle Borough Council,Operational Services,Capital Costs,Capital : Payments,CD14,THE CDS GROUP,A0096940,19/10/2023,OPS0337129,200,N,,N,N
Pendle Borough Council,Operational Services,Capital Costs,Capital : Payments,CD14,THE CDS GROUP,A0096940,19/10/2023,OPS0337128,292.5,N,,N,N
Pendle Borough Council,Operational Services,Capital Costs,Capital : Payments,CD14,THE CDS GROUP,A0096940,19/10/2023,OPS0337129,425,N,,N,N
Pendle Borough Council,Operational Services,Capital Costs,Capital : Payments,CD14,THE CDS GROUP,A0096940,19/10/2023,OPS0337129,715,N,,N,N
Pendle Borough Council,Operational Services,Capital Costs,Capital : Payments,CD14,THE CDS GROUP,A0096940,19/10/2023,OPS0337128,850,N,,N,N
Pendle Borough Council,Operational Services,Capital Costs,Capital : Payments,CD14,THE CDS GROUP,A0096940,19/10/2023,OPS0337129,850,N,,N,N
Pendle Borough Council,Operational Services,Capital Costs,Capital : Payments,CD14,THE CDS GROUP,A0096940,19/10/2023,OPS0337128,1072.5,N,,N,N
Pendle Borough Council,Operational Services,Capital Costs,Capital : Payments,CD14,THE CDS GROUP,A0096940,12/10/2023,OPS0337011,190,N,,N,N
Pendle Borough Council,Operational Services,Capital Costs,Capital : Payments,CD14,THE CDS GROUP,A0096940,12/10/2023,OPS0337011,600,N,,N,N
Pendle Borough Council,Operational Services,Capital Costs,Capital : Payments,CD14,THE CDS GROUP,A0096940,12/10/2023,OPS0337010,650,N,,N,N
Pendle Borough Council,Operational Services,Capital Costs,Capital : Payments,CD14,THE CDS GROUP,A0096940,12/10/2023,OPS0337010,1100,N,,N,N
Pendle Borough Council,Operational Services,Capital Costs,Capital : Payments,CD14,THE CDS GROUP,A0096940,12/10/2023,OPS0337010,1150,N,,N,N
Pendle Borough Council,Operational Services,Capital Costs,Capital : Payments,CD14,THE CDS GROUP,A0096940,19/10/2023,OPS0337127,1625,N,,N,N
Pendle Borough Council,Operational Services,Capital Costs,Capital : Payments,CD14,THE CDS GROUP,A0096940,12/10/2023,OPS0337010,2300,N,,N,N
Pendle Borough Council,Operational Services,Capital Costs,Capital : Payments,CD14,THE CDS GROUP,A0096940,12/10/2023,OPS0337010,3250,N,,N,N
Pendle Borough Council,Finance,Supplies and Services,Grant Funding,4737,REDACT - PERSONAL DATA,A0096978,06/10/2023,FIN0336944,350,N,,N,N
Pendle Borough Council,Finance,Supplies and Services,Grant Funding,4737,REDACT - PERSONAL DATA,A0096980,06/10/2023,FIN0336945,350,N,,N,N
Pendle Borough Council,Economic Growth,Supplies and Services,Consultants Fees,4401,RAISE PARTNERSHIP LIMITED,A0096986,25/10/2023,ECO0337204,3850,N,,N,N
Pendle Borough Council,Economic Growth,Supplies and Services,Consultants Fees,4401,RAISE PARTNERSHIP LIMITED,A0096986,25/10/2023,ECO0337200,274.5,N,,N,N
Pendle Borough Council,Economic Growth,Supplies and Services,Consultants Fees,4401,RAISE PARTNERSHIP LIMITED,A0096986,12/10/2023,ECO0337035,1250,N,,N,N
Pendle Borough Council,Economic Growth,Supplies and Services,Consultants Fees,4401,RAISE PARTNERSHIP LIMITED,A0096986,25/10/2023,ECO0337203,1250,N,,N,N
Pendle Borough Council,Economic Growth,Supplies and Services,Consultants Fees,4401,RAISE PARTNERSHIP LIMITED,A0096986,12/10/2023,ECO0337034,1950,N,,N,N
Pendle Borough Council,Economic Growth,Supplies and Services,Consultants Fees,4401,RAISE PARTNERSHIP LIMITED,A0096986,12/10/2023,ECO0337033,4275,N,,N,N
Pendle Borough Council,Economic Growth,Supplies and Services,Consultants Fees,4401,RAISE PARTNERSHIP LIMITED,A0096986,25/10/2023,ECO0337201,9652.5,N,,N,N
Pendle Borough Council,Economic Growth,Capital Costs,Consultancy,CE45,RAISE PARTNERSHIP LIMITED,A0096986,25/10/2023,ECO0337202,1950,N,,N,N
Pendle Borough Council,Finance,Supplies and Services,Grant Funding,4737,REDACT - PERSONAL DATA,A0097003,06/10/2023,FIN0336946,350,N,,N,N
Pendle Borough Council,Operational Services,Transport Related Expense,Tprt : Repairs : General,3105,SIXIS Technology Ltd,A0097018,05/10/2023,OPS0336826,458.8,N,,N,N
Pendle Borough Council,Operational Services,Transport Related Expense,Tprt : Annual Hire Charge,3601,CAR HIRE DAY OF SWANSEA LTD,A0097023,12/10/2023,OPS0336999,374.1,N,,N,N
Pendle Borough Council,Operational Services,Transport Related Expense,Tprt : Annual Hire Charge,3601,CAR HIRE DAY OF SWANSEA LTD,A0097023,19/10/2023,OPS0337207,701.22,N,,N,N
Pendle Borough Council,Operational Services,Transport Related Expense,Tprt : Annual Hire Charge,3601,CAR HIRE DAY OF SWANSEA LTD,A0097023,05/10/2023,OPS0336818,737.7,N,,N,N
Pendle Borough Council,Finance,Capital Costs,Capital: Design Fees,CD53,DCR SURVEYING AND ESTIMATING SERVICES LTD,A0097173,05/10/2023,FIN0336892,2481.22,N,,N,N
Pendle Borough Council,Finance,Capital Costs,Capital: Design Fees,CD53,DCR SURVEYING AND ESTIMATING SERVICES LTD,A0097173,05/10/2023,FIN0336893,868.79,N,,N,N
Pendle Borough Council,Finance,Capital Costs,Capital: Design Fees,CD53,ANDREW HAWTHORNE ARCHITECTS,A0097334,12/10/2023,FIN0337066,3000,N,,N,N
Pendle Borough Council,Operational Services,Premises Related Expense,Grounds : R & M : Day to Day : Routine,2101,TECHNICAL SITE DISTRIBUTION LTD,A0097336,05/10/2023,OPS0336840,670,N,,N,N
Pendle Borough Council,Finance,Supplies and Services,Grant Funding,4737,REDACT - PERSONAL DATA,A0097338,06/10/2023,FIN0336947,350,N,,N,N
Pendle Borough Council,Finance,Supplies and Services,Grant Funding,4737,REDACT - PERSONAL DATA,A0097339,06/10/2023,FIN0336948,350,N,,N,N
Pendle Borough Council,Housing & Environmental Health,Supplies and Services,Other Expenses,4705,LADY  BELL LTD,A0097412,19/10/2023,HEH0337115,999,N,,N,N
Pendle Borough Council,Finance,Supplies and Services,Grant Funding,4737,REDACT - PERSONAL DATA,A0097415,06/10/2023,FIN0336949,500,N,,N,N
Pendle Borough Council,Finance,Capital Costs,Capital: Construction: Conversion/Refu,CD57,READSTONE CONSTRUCTION,A0097418,12/10/2023,FIN0337067,106967.99,N,,N,N
Pendle Borough Council,Finance,Supplies and Services,Grant Funding,4737,REDACT - PERSONAL DATA,A0097419,06/10/2023,FIN0336950,350,N,,N,N
Pendle Borough Council,Housing & Environmental Health,Supplies and Services,Other Expenses,4705,SHP GROUP LIMITED,A0097438,25/10/2023,HEH0337243,953.32,N,,N,N
Pendle Borough Council,Operational Services,Premises Related Expense,Grounds : R & M : Day to Day : Routine,2101,PETER`S LANDSCAPING & GARDEN SERVICE,A0097442,12/10/2023,OPS0337000,50,N,,N,N
Pendle Borough Council,Operational Services,Supplies and Services,EFM Materials,4004,PETER`S LANDSCAPING & GARDEN SERVICE,A0097442,12/10/2023,OPS0337000,8.1,N,,N,N
Pendle Borough Council,Operational Services,Supplies and Services,Sub-Contractors,4007,PETER`S LANDSCAPING & GARDEN SERVICE,A0097442,12/10/2023,OPS0337000,100,N,,N,N
Pendle Borough Council,Operational Services,Supplies and Services,Sub-Contractors,4007,PETER`S LANDSCAPING & GARDEN SERVICE,A0097442,19/10/2023,OPS0337131,1000,N,,N,N
Pendle Borough Council,Operational Services,Agency Costs,Refuse Collection DLO,5005,PETER`S LANDSCAPING & GARDEN SERVICE,A0097442,12/10/2023,OPS0337000,100,N,,N,N
Pendle Borough Council,Operational Services,Indirect Employee Expenses,Training,1211,DQ-CPC TRAINING,A0097447,12/10/2023,OPS0336991,170,N,,N,N
Pendle Borough Council,Finance,Supplies and Services,Grant Funding,4737,REDACT - PERSONAL DATA,A0097448,06/10/2023,FIN0336951,350,N,,N,N
Pendle Borough Council,Human Resources,Supplies and Services,Other Expenses,4705,AVC WISE LTD,A0097461,05/10/2023,PER0336798,116.65,N,,N,N
Pendle Borough Council,Finance,Supplies and Services,Seminars etc All Costs,4601,OLD FASHIONED CATERING,A0097465,05/10/2023,FIN0336883,640,N,,N,N
Pendle Borough Council,Policy & Commissioning,Supplies and Services,Seminars etc All Costs,4601,OLD FASHIONED CATERING,A0097465,05/10/2023,POL0336805,420,N,,N,N
Pendle Borough Council,Operational Services,Supplies and Services,Expenditure : Materials,0002,BOUGHTON LOAM LIMITED,A0097467,12/10/2023,OPS0337018,1304,N,,N,N
Pendle Borough Council,Human Resources,Indirect Employee Expenses,Emp : Medical Expenses,1236,REDACT - PERSONAL DATA,A0097468,05/10/2023,PER0336804,135,N,,N,N
Pendle Borough Council,Finance,Capital Costs,Capital: Construction: Conversion/Refu,CD57,BAILEY CONTRACTS LTD,A0097470,05/10/2023,FIN0336895,28090.85,N,,N,N
Pendle Borough Council,Human Resources,Supplies and Services,Legal Fees,4402,FORBES SOLICTORS,A0097472,12/10/2023,PER0337007,3176,N,,N,N
Pendle Borough Council,Legal & Democratic Services,Supplies and Services,Meeting Expenses,4610,BELLYFLOP TV LTD,A0097473,19/10/2023,LAD0337135,1485,N,,N,N
Pendle Borough Council,Housing & Environmental Health,,Rents : VATable,9204,REDACT - PERSONAL DATA,A0097474,19/10/2023,HEH0337123,62.03,N,,N,N
Pendle Borough Council,Housing & Environmental Health,Supplies and Services,Other Expenses,4705,REDACT - PERSONAL DATA,A0097475,19/10/2023,HEH0337162,600,N,,N,N
Pendle Borough Council,Housing & Environmental Health,Supplies and Services,Other Expenses,4705,REDACT - PERSONAL DATA,A0097478,25/10/2023,HEH0337225,1350,N,,N,N
Pendle Borough Council,Policy & Commissioning,Supplies and Services,Consultants Fees,4401,ANDY CRIBBIN,A0097483,25/10/2023,POL0337263,5000,N,,N,N
Pendle Borough Council,Finance,Capital Costs,Miscellaneous,CE4F,THE HOLDING HOUSE LTD,A0097485,25/10/2023,FIN0337297,600,N,,N,N
